Workbook

Sheet Инструкция

Sheet Титульный
D2: Версия 2.3
F3: 2019
B4: ="Информация для расчета ставок платы за технологическое присоединение к электрическим сетям на " & D10 & " год (фактические данные предоставляются за период " & D10-4 & "-" & D10-2 & " гг.)" -> Информация для расчета ставок платы за технологическое присоединение к электрическим сетям на 2023 год (фактические данные предоставляются за период 2019-2021 гг.) | F4: 2020
F5: 2021
F6: 2022
B8: Наименование организации | D8: ООО "Газпром энерго"
B10: Период регулирования | D10: 2023
B12: Ответственный за заполнение формы | D12: Каримова Лидия Сергеевна
B14: Телефон исполнителя | D14: 8(3462) 75-19-23
B16: Электонная почта | D16: L.Karimova@suf.energo.gazprom.ru
B18: Дата заполнения | D18: 2022-10-07

Sheet Ставка 1.
B1: ="Расходы на выполнение мероприятий по технологическому присоединению, предусмотренным подпунктами 'а' и 'в' пункта 16 Методических указаний, за " & Титульный!D10-4 & "-" & Титульный!D10-2 & " гг." -> Расходы на выполнение мероприятий по технологическому присоединению, предусмотренным подпунктами 'а' и 'в' пункта 16 Методических указаний, за 2019-2021 гг.
B5: N п/п | C5: Наименование мероприятий | D5: Информация для расчета стандартизированной тарифной ставки С1 | G5: Год | H5: Расходы на одно присоединение (руб. на одно ТП), (без НДС)
D6: Расходы по каждому мероприятию (руб.), (без НДС) | E6: Количество технологических присоединений (шт.) | F6: Объем максимальной мощности (кВт)
B7: 1 | C7: 2 | D7: 3 | E7: 4 | F7: 5 | G7: 6 | H7: 7
E8: =Титульный!D10-4 -> 2019
B9: 1 | C9: Подготовка и выдача сетевой организацией технических условий Заявителю, в том числе: | D9: =SUM(D10:D18) -> 53,083.97 | E9: =SUM(E10:E18) -> 19.00 | F9: =SUM(F10:F18) -> 2,467.00 | G9: =Титульный!$D$10-4 -> 2019 | H9: =IFERROR(D9/E9,"Заполните все столбцы") -> 2793.893158
B10: 1.1 | C10: п.12(1). Юридические лице или индивидуальные предприниматели в целях технологического присоединения по второй или третьей категории надежности энергопринимающих устройств, максимальная мощность которых составляет до 150 кВт включительно, в случае если технологическое присоединение энергопринимающих устройств таких заявителей осуществляется на уровне напряжения 0,4 кВ и ниже | D10: =1059.31/11*4 -> 385.20 | E10: 4.00 | F10: 34.00 | G10: =Титульный!$D$10-4 -> 2019 | H10: =IFERROR(D10/E10,"Заполните все столбцы") -> 96.30090909
B11: 1.2 | C11: п.13(2). Юридические лица или индивидуальные предприниматели в целях технологического присоединения объектов микрогенерации к объектам электросетевого хозяйства с уровнем напряжения до 1000 В, в случае если технологическое присоединение энергопринимающих устройств таких заявителей осуществляется на уровне напряжения 0,4 кВ и ниже | D11: 0.00 | E11: 0.00 | F11: 0.00 | G11: =Титульный!$D$10-4 -> 2019 | H11: Заполните все столбцы
B12: 1.3 | C12: п.13(3). Юридические лица или индивидуальные предприниматели в целях одновременного технологического присоединения к объектам электросетевого хозяйства с уровнем напряжения до 1000 В энергопринимающих устройств, максимальная мощность которых составляет до 150 кВт включительно (с учетом ранее присоединенных в данной точке присоединения энергопринимающих устройств), электроснабжение которых предусматривается по одному источнику, и объектов микрогенерации, в случае если технологическое присоединение энергопринимающих устройств таких заявителей осуществляется на уровне напряжения 0,4 кВ и ниже | D12: 0.00 | E12: 0.00 | F12: 0.00 | G12: =Титульный!$D$10-4 -> 2019 | H12: Заполните все столбцы
B13: 1.4 | C13: п.13(4). Физические лица в целях технологического присоединения объекта микрогенерации к объектам электросетевого хозяйства с уровнем напряжения до 1000 В, в случае если технологическое присоединение энергопринимающих устройств таких заявителей осуществляется на уровне напряжения 0,4 кВ и ниже | D13: 0.00 | E13: 0.00 | F13: 0.00 | G13: =Титульный!$D$10-4 -> 2019 | H13: Заполните все столбцы
B14: 1.5 | C14: п.13(5). Физические лица в целях одновременного технологического присоединения к объектам электросетевого хозяйства с уровнем напряжения до 1000 В энергопринимающих устройств, максимальная мощность которых составляет до 150 кВт включительно (с учетом ранее присоединенных в данной точке присоединения энергопринимающих устройств), которые используются для бытовых и иных нужд, не связанных с осуществлением предпринимательской деятельности, и электроснабжение которых предусматривается по одному источнику, и объектов микрогенерации, в случае если технологическое присоединение энергопринимающих устройств таких заявителей осуществляется на уровне напряжения 0,4 кВ и ниже | D14: 0.00 | E14: 0.00 | F14: 0.00 | G14: =Титульный!$D$10-4 -> 2019 | H14: Заполните все столбцы
B15: 1.6 | C15: п.14. Физические лица в целях технологического присоединения энергопринимающих устройств, максимальная мощность которых составляет до 15 кВт включительно (с учетом ранее присоединенных в данной точке присоединения энергопринимающих устройств), которые используются для бытовых и иных нужд, не связанных с осуществлением предпринимательской деятельности, и электроснабжение которых предусматривается по одному источнику, в случае если технологическое присоединение энергопринимающих устройств таких заявителей осуществляется на уровне напряжения 0,4 кВ и ниже | D15: =1059.31/11*6 -> 577.81 | E15: 6.00 | F15: 71.00 | G15: =Титульный!$D$10-4 -> 2019 | H15: 96.30090909
B16: 1.7 | C16: Заявители, не относящиеся к вышеуказннаыми категориям свыше 15 кВт до 150 кВт | D16: =1059.31/11+52024.66/8*7 -> 45,617.88 | E16: 8.00 | F16: 762.00 | G16: =Титульный!$D$10-4 -> 2019 | H16: =IFERROR(D16/E16,"Заполните все столбцы") -> 5702.234801
B17: 1.8 | C17: Заявители, не относящиеся к вышеуказннаыми категориям свыше 150 кВт до 670 кВт | D17: 0.00 | E17: 0.00 | F17: 0.00 | G17: =Титульный!$D$10-4 -> 2019 | H17: Заполните все столбцы
B18: 1.9 | C18: Заявители, не относящиеся к вышеуказннаыми категориям свыше 670 кВт | D18: =52024.66/8*1 -> 6,503.08 | E18: 1.00 | F18: 1,600.00 | G18: =Титульный!$D$10-4 -> 2019 | H18: 6503.0825
B19: 2 | C19: Проверка сетевой организацией выполнения технических условий Заявителем | D19: =D20+D27 -> 17,205.10 | E19: =E20+E27 -> 19.00 | F19: 2,467.00 | G19: =Титульный!$D$10-4 -> 2019 | H19: 905.5315789
B20: 2.1 | C20: Выдача сетевой организацией уведомления об обеспечении сетевой организацией возможности присоединения к электрическим сетям Заявителям, указанным в абзаце шестом пункта 24 Методических указаний по определению размера платы за технологическое присоединение к электрическим сетям | D20: =SUM(D21:D26) -> 0.00 | E20: =SUM(E21:E26) -> 10.00 | F20: 105.00 | G20: =Титульный!$D$10-4 -> 2019 | H20: 0
B21: 2.1.1 | C21: п.12(1). Юридические лице или индивидуальные предприниматели в целях технологического присоединения по второй или третьей категории надежности энергопринимающих устройств, максимальная мощность которых составляет до 150 кВт включительно, в случае если технологическое присоединение энергопринимающих устройств таких заявителей осуществляется на уровне напряжения 0,4 кВ и ниже | D21: 0.00 | E21: 4.00 | F21: 34.00 | G21: =Титульный!$D$10-4 -> 2019 | H21: =IFERROR(D21/E21,"Заполните все столбцы") -> 0
B22: 2.1.2 | C22: п.13(2). Юридические лица или индивидуальные предприниматели в целях технологического присоединения объектов микрогенерации к объектам электросетевого хозяйства с уровнем напряжения до 1000 В, в случае если технологическое присоединение энергопринимающих устройств таких заявителей осуществляется на уровне напряжения 0,4 кВ и ниже | D22: 0.00 | E22: 0.00 | F22: 0.00 | G22: =Титульный!$D$10-4 -> 2019 | H22: Заполните все столбцы
B23: 2.1.3 | C23: п.13(3). Юридические лица или индивидуальные предприниматели в целях одновременного технологического присоединения к объектам электросетевого хозяйства с уровнем напряжения до 1000 В энергопринимающих устройств, максимальная мощность которых составляет до 150 кВт включительно (с учетом ранее присоединенных в данной точке присоединения энергопринимающих устройств), электроснабжение которых предусматривается по одному источнику, и объектов микрогенерации, в случае если технологическое присоединение энергопринимающих устройств таких заявителей осуществляется на уровне напряжения 0,4 кВ и ниже | D23: 0.00 | E23: 0.00 | F23: 0.00 | G23: =Титульный!$D$10-4 -> 2019 | H23: Заполните все столбцы
B24: 2.1.4 | C24: п.13(4). Физические лица в целях технологического присоединения объекта микрогенерации к объектам электросетевого хозяйства с уровнем напряжения до 1000 В, в случае если технологическое присоединение энергопринимающих устройств таких заявителей осуществляется на уровне напряжения 0,4 кВ и ниже | D24: 0.00 | E24: 0.00 | F24: 0.00 | G24: =Титульный!$D$10-4 -> 2019 | H24: Заполните все столбцы
B25: 2.1.5 | C25: п.13(5). Физические лица в целях одновременного технологического присоединения к объектам электросетевого хозяйства с уровнем напряжения до 1000 В энергопринимающих устройств, максимальная мощность которых составляет до 150 кВт включительно (с учетом ранее присоединенных в данной точке присоединения энергопринимающих устройств), которые используются для бытовых и иных нужд, не связанных с осуществлением предпринимательской деятельности, и электроснабжение которых предусматривается по одному источнику, и объектов микрогенерации, в случае если технологическое присоединение энергопринимающих устройств таких заявителей осуществляется на уровне напряжения 0,4 кВ и ниже | D25: 0.00 | E25: 0.00 | F25: 0.00 | G25: =Титульный!$D$10-4 -> 2019 | H25: Заполните все столбцы
B26: 2.1.6 | C26: п.14. Физические лица в целях технологического присоединения энергопринимающих устройств, максимальная мощность которых составляет до 15 кВт включительно (с учетом ранее присоединенных в данной точке присоединения энергопринимающих устройств), которые используются для бытовых и иных нужд, не связанных с осуществлением предпринимательской деятельности, и электроснабжение которых предусматривается по одному источнику, в случае если технологическое присоединение энергопринимающих устройств таких заявителей осуществляется на уровне напряжения 0,4 кВ и ниже | D26: 0.00 | E26: 6.00 | F26: 71.00 | G26: =Титульный!$D$10-4 -> 2019 | H26: 0
B27: 2.2 | C27: Проверка сетевой организацией выполнения технических условий Заявителями, указанными в абзаце седьмом пункта 24 Методических указаний по определению размера платы за технологическое присоединение к электрическим сетям | D27: =SUM(D28:D30) -> 17,205.10 | E27: =SUM(E28:E30) -> 9.00 | F27: 2,362.00 | G27: =Титульный!$D$10-4 -> 2019 | H27: 1911.677778
B28: 2.2.1 | C28: Заявители, не относящиеся к вышеуказннаыми категориям свыше 15 кВт до 150 кВт | D28: 15,054.46 | E28: 8.00 | F28: 762.00 | G28: =Титульный!$D$10-4 -> 2019 | H28: =IFERROR(D28/E28,"Заполните все столбцы") -> 1881.8075
B29: 2.2.2 | C29: Заявители, не относящиеся к вышеуказннаыми категориям свыше 150 кВт до 670 кВт | D29: 0.00 | E29: 0.00 | F29: 0.00 | G29: =Титульный!$D$10-4 -> 2019 | H29: Заполните все столбцы
B30: 2.2.3 | C30: Заявители, не относящиеся к вышеуказннаыми категориям свыше 670 кВт | D30: 2,150.64 | E30: 1.00 | F30: 1,600.00 | G30: =Титульный!$D$10-4 -> 2019 | H30: 2150.64
E31: =Титульный!D10-3 -> 2020
B32: 1 | C32: Подготовка и выдача сетевой организацией технических условий Заявителю, в том числе: | D32: =SUM(D33:D41) -> 116,030.75 | E32: =SUM(E33:E41) -> 18.00 | F32: =SUM(F33:F41) -> 5,474.06 | G32: =Титульный!$D$10-3 -> 2020 | H32: =IFERROR(D32/E32,"Заполните все столбцы") -> 6446.152778
B33: 1.1 | C33: п.12(1). Юридические лице или индивидуальные предприниматели в целях технологического присоединения по второй или третьей категории надежности энергопринимающих устройств, максимальная мощность которых составляет до 150 кВт включительно, в случае если технологическое присоединение энергопринимающих устройств таких заявителей осуществляется на уровне напряжения 0,4 кВ и ниже | D33: =4486.38/6*3+111544.37/12*4 -> 39,424.65 | E33: 7.00 | F33: 238.50 | G33: =Титульный!$D$10-3 -> 2020 | H33: =IFERROR(D33/E33,"Заполните все столбцы") -> 5632.092381
B34: 1.2 | C34: п.13(2). Юридические лица или индивидуальные предприниматели в целях технологического присоединения объектов микрогенерации к объектам электросетевого хозяйства с уровнем напряжения до 1000 В, в случае если технологическое присоединение энергопринимающих устройств таких заявителей осуществляется на уровне напряжения 0,4 кВ и ниже | D34: 0.00 | E34: 0.00 | F34: 0.00 | G34: =Титульный!$D$10-3 -> 2020 | H34: Заполните все столбцы
B35: 1.3 | C35: п.13(3). Юридические лица или индивидуальные предприниматели в целях одновременного технологического присоединения к объектам электросетевого хозяйства с уровнем напряжения до 1000 В энергопринимающих устройств, максимальная мощность которых составляет до 150 кВт включительно (с учетом ранее присоединенных в данной точке присоединения энергопринимающих устройств), электроснабжение которых предусматривается по одному источнику, и объектов микрогенерации, в случае если технологическое присоединение энергопринимающих устройств таких заявителей осуществляется на уровне напряжения 0,4 кВ и ниже | D35: 0.00 | E35: 0.00 | F35: 0.00 | G35: =Титульный!$D$10-3 -> 2020 | H35: Заполните все столбцы
B36: 1.4 | C36: п.13(4). Физические лица в целях технологического присоединения объекта микрогенерации к объектам электросетевого хозяйства с уровнем напряжения до 1000 В, в случае если технологическое присоединение энергопринимающих устройств таких заявителей осуществляется на уровне напряжения 0,4 кВ и ниже | D36: 0.00 | E36: 0.00 | F36: 0.00 | G36: =Титульный!$D$10-3 -> 2020 | H36: Заполните все столбцы
B37: 1.5 | C37: п.13(5). Физические лица в целях одновременного технологического присоединения к объектам электросетевого хозяйства с уровнем напряжения до 1000 В энергопринимающих устройств, максимальная мощность которых составляет до 150 кВт включительно (с учетом ранее присоединенных в данной точке присоединения энергопринимающих устройств), которые используются для бытовых и иных нужд, не связанных с осуществлением предпринимательской деятельности, и электроснабжение которых предусматривается по одному источнику, и объектов микрогенерации, в случае если технологическое присоединение энергопринимающих устройств таких заявителей осуществляется на уровне напряжения 0,4 кВ и ниже | D37: 0.00 | E37: 0.00 | F37: 0.00 | G37: =Титульный!$D$10-3 -> 2020 | H37: Заполните все столбцы
B38: 1.6 | C38: п.14. Физические лица в целях технологического присоединения энергопринимающих устройств, максимальная мощность которых составляет до 15 кВт включительно (с учетом ранее присоединенных в данной точке присоединения энергопринимающих устройств), которые используются для бытовых и иных нужд, не связанных с осуществлением предпринимательской деятельности, и электроснабжение которых предусматривается по одному источнику, в случае если технологическое присоединение энергопринимающих устройств таких заявителей осуществляется на уровне напряжения 0,4 кВ и ниже | D38: =4486.38/6*3 -> 2,243.19 | E38: 3.00 | F38: 45.00 | G38: =Титульный!$D$10-3 -> 2020 | H38: 747.73
B39: 1.7 | C39: Заявители, не относящиеся к вышеуказннаыми категориям свыше 15 кВт до 150 кВт | D39: =111544.37/12*5 -> 46,476.82 | E39: 5.00 | F39: 574.56 | G39: =Титульный!$D$10-3 -> 2020 | H39: 9295.364167
B40: 1.8 | C40: Заявители, не относящиеся к вышеуказннаыми категориям свыше 150 кВт до 670 кВт | D40: =111544.37/12*1 -> 9,295.36 | E40: 1.00 | F40: 200.00 | G40: =Титульный!$D$10-3 -> 2020 | H40: 9295.364167
B41: 1.9 | C41: Заявители, не относящиеся к вышеуказннаыми категориям свыше 670 кВт | D41: =111544.37/12*2 -> 18,590.73 | E41: 2.00 | F41: 4,416.00 | G41: =Титульный!$D$10-3 -> 2020 | H41: 9295.364167
B42: 2 | C42: Проверка сетевой организацией выполнения технических условий Заявителем | D42: =D43+D50 -> 251,730.08 | E42: =E43+E50 -> 18.00 | F42: 5,474.06 | G42: =Титульный!$D$10-3 -> 2020 | H42: 13985.00444
B43: 2.1 | C43: Выдача сетевой организацией уведомления об обеспечении сетевой организацией возможности присоединения к электрическим сетям Заявителям, указанным в абзаце шестом пункта 24 Методических указаний по определению размера платы за технологическое присоединение к электрическим сетям | D43: =SUM(D44:D49) -> 89,928.43 | E43: =SUM(E44:E49) -> 10.00 | F43: =SUM(F44:F49) -> 283.50 | G43: =Титульный!$D$10-3 -> 2020 | H43: 8992.843
B44: 2.1.1 | C44: п.12(1). Юридические лице или индивидуальные предприниматели в целях технологического присоединения по второй или третьей категории надежности энергопринимающих устройств, максимальная мощность которых составляет до 150 кВт включительно, в случае если технологическое присоединение энергопринимающих устройств таких заявителей осуществляется на уровне напряжения 0,4 кВ и ниже | D44: =9027.6/6*3+80900.83 -> 85,414.63 | E44: 7.00 | F44: 238.50 | G44: =Титульный!$D$10-3 -> 2020 | H44: 12202.09
B45: 2.1.2 | C45: п.13(2). Юридические лица или индивидуальные предприниматели в целях технологического присоединения объектов микрогенерации к объектам электросетевого хозяйства с уровнем напряжения до 1000 В, в случае если технологическое присоединение энергопринимающих устройств таких заявителей осуществляется на уровне напряжения 0,4 кВ и ниже | D45: 0.00 | E45: 0.00 | F45: 0.00 | G45: =Титульный!$D$10-3 -> 2020 | H45: Заполните все столбцы
B46: 2.1.3 | C46: п.13(3). Юридические лица или индивидуальные предприниматели в целях одновременного технологического присоединения к объектам электросетевого хозяйства с уровнем напряжения до 1000 В энергопринимающих устройств, максимальная мощность которых составляет до 150 кВт включительно (с учетом ранее присоединенных в данной точке присоединения энергопринимающих устройств), электроснабжение которых предусматривается по одному источнику, и объектов микрогенерации, в случае если технологическое присоединение энергопринимающих устройств таких заявителей осуществляется на уровне напряжения 0,4 кВ и ниже | D46: 0.00 | E46: 0.00 | F46: 0.00 | G46: =Титульный!$D$10-3 -> 2020 | H46: Заполните все столбцы
B47: 2.1.4 | C47: п.13(4). Физические лица в целях технологического присоединения объекта микрогенерации к объектам электросетевого хозяйства с уровнем напряжения до 1000 В, в случае если технологическое присоединение энергопринимающих устройств таких заявителей осуществляется на уровне напряжения 0,4 кВ и ниже | D47: 0.00 | E47: 0.00 | F47: 0.00 | G47: =Титульный!$D$10-3 -> 2020 | H47: Заполните все столбцы
B48: 2.1.5 | C48: п.13(5). Физические лица в целях одновременного технологического присоединения к объектам электросетевого хозяйства с уровнем напряжения до 1000 В энергопринимающих устройств, максимальная мощность которых составляет до 150 кВт включительно (с учетом ранее присоединенных в данной точке присоединения энергопринимающих устройств), которые используются для бытовых и иных нужд, не связанных с осуществлением предпринимательской деятельности, и электроснабжение которых предусматривается по одному источнику, и объектов микрогенерации, в случае если технологическое присоединение энергопринимающих устройств таких заявителей осуществляется на уровне напряжения 0,4 кВ и ниже | D48: 0.00 | E48: 0.00 | F48: 0.00 | G48: =Титульный!$D$10-3 -> 2020 | H48: Заполните все столбцы
B49: 2.1.6 | C49: п.14. Физические лица в целях технологического присоединения энергопринимающих устройств, максимальная мощность которых составляет до 15 кВт включительно (с учетом ранее присоединенных в данной точке присоединения энергопринимающих устройств), которые используются для бытовых и иных нужд, не связанных с осуществлением предпринимательской деятельности, и электроснабжение которых предусматривается по одному источнику, в случае если технологическое присоединение энергопринимающих устройств таких заявителей осуществляется на уровне напряжения 0,4 кВ и ниже | D49: =9027.6/6*3 -> 4,513.80 | E49: 3.00 | F49: 45.00 | G49: =Титульный!$D$10-3 -> 2020 | H49: 1504.6
B50: 2.2 | C50: Проверка сетевой организацией выполнения технических условий Заявителями, указанными в абзаце седьмом пункта 24 Методических указаний по определению размера платы за технологическое присоединение к электрическим сетям | D50: =SUM(D51:D53) -> 161,801.65 | E50: =SUM(E51:E53) -> 8.00 | F50: =SUM(F51:F53) -> 5,190.56 | G50: =Титульный!$D$10-3 -> 2020 | H50: 20225.20625
B51: 2.2.1 | C51: Заявители, не относящиеся к вышеуказннаыми категориям свыше 15 кВт до 150 кВт | D51: =161801.65/8*5 -> 101,126.03 | E51: 5.00 | F51: 574.56 | G51: =Титульный!$D$10-3 -> 2020 | H51: 20225.20625
B52: 2.2.2 | C52: Заявители, не относящиеся к вышеуказннаыми категориям свыше 150 кВт до 670 кВт | D52: =161801.65/8*1 -> 20,225.21 | E52: 1.00 | F52: 200.00 | G52: =Титульный!$D$10-3 -> 2020 | H52: 20225.20625
B53: 2.2.3 | C53: Заявители, не относящиеся к вышеуказннаыми категориям свыше 670 кВт | D53: =161801.65/8*2 -> 40,450.41 | E53: 2.00 | F53: 4,416.00 | G53: =Титульный!$D$10-3 -> 2020 | H53: 20225.20625
E54: =Титульный!D10-2 -> 2021
B55: 1 | C55: Подготовка и выдача сетевой организацией технических условий Заявителю, в том числе: | D55: =SUM(D56:D64) -> 186.92 | E55: =SUM(E56:E64) -> 32.00 | F55: =SUM(F56:F64) -> 4,362.50 | G55: =Титульный!$D$10-2 -> 2021 | H55: =IFERROR(D55/E55,"Заполните все столбцы") -> 5.841132187
B56: 1.1 | C56: п.12(1). Юридические лице или индивидуальные предприниматели в целях технологического присоединения по второй или третьей категории надежности энергопринимающих устройств, максимальная мощность которых составляет до 150 кВт включительно, в случае если технологическое присоединение энергопринимающих устройств таких заявителей осуществляется на уровне напряжения 0,4 кВ и ниже | D56: =13.8179/14*4+173.09833/18*7 -> 71.26 | E56: 11.00 | F56: 652.50 | G56: =Титульный!$D$10-2 -> 2021 | H56: =IFERROR(D56/E56,"Заполните все столбцы") -> 6.478544423
B57: 1.2 | C57: п.13(2). Юридические лица или индивидуальные предприниматели в целях технологического присоединения объектов микрогенерации к объектам электросетевого хозяйства с уровнем напряжения до 1000 В, в случае если технологическое присоединение энергопринимающих устройств таких заявителей осуществляется на уровне напряжения 0,4 кВ и ниже | D57: 0.00 | E57: 0.00 | F57: 0.00 | G57: =Титульный!$D$10-2 -> 2021 | H57: Заполните все столбцы
B58: 1.3 | C58: п.13(3). Юридические лица или индивидуальные предприниматели в целях одновременного технологического присоединения к объектам электросетевого хозяйства с уровнем напряжения до 1000 В энергопринимающих устройств, максимальная мощность которых составляет до 150 кВт включительно (с учетом ранее присоединенных в данной точке присоединения энергопринимающих устройств), электроснабжение которых предусматривается по одному источнику, и объектов микрогенерации, в случае если технологическое присоединение энергопринимающих устройств таких заявителей осуществляется на уровне напряжения 0,4 кВ и ниже | D58: 0.00 | E58: 0.00 | F58: 0.00 | G58: =Титульный!$D$10-2 -> 2021 | H58: Заполните все столбцы
B59: 1.4 | C59: п.13(4). Физические лица в целях технологического присоединения объекта микрогенерации к объектам электросетевого хозяйства с уровнем напряжения до 1000 В, в случае если технологическое присоединение энергопринимающих устройств таких заявителей осуществляется на уровне напряжения 0,4 кВ и ниже | D59: 0.00 | E59: 0.00 | F59: 0.00 | G59: =Титульный!$D$10-2 -> 2021 | H59: Заполните все столбцы
B60: 1.5 | C60: п.13(5). Физические лица в целях одновременного технологического присоединения к объектам электросетевого хозяйства с уровнем напряжения до 1000 В энергопринимающих устройств, максимальная мощность которых составляет до 150 кВт включительно (с учетом ранее присоединенных в данной точке присоединения энергопринимающих устройств), которые используются для бытовых и иных нужд, не связанных с осуществлением предпринимательской деятельности, и электроснабжение которых предусматривается по одному источнику, и объектов микрогенерации, в случае если технологическое присоединение энергопринимающих устройств таких заявителей осуществляется на уровне напряжения 0,4 кВ и ниже | D60: 0.00 | E60: 0.00 | F60: 0.00 | G60: =Титульный!$D$10-2 -> 2021 | H60: Заполните все столбцы
B61: 1.6 | C61: п.14. Физические лица в целях технологического присоединения энергопринимающих устройств, максимальная мощность которых составляет до 15 кВт включительно (с учетом ранее присоединенных в данной точке присоединения энергопринимающих устройств), которые используются для бытовых и иных нужд, не связанных с осуществлением предпринимательской деятельности, и электроснабжение которых предусматривается по одному источнику, в случае если технологическое присоединение энергопринимающих устройств таких заявителей осуществляется на уровне напряжения 0,4 кВ и ниже | D61: =13.8179/14*10 -> 9.87 | E61: 10.00 | F61: 135.00 | G61: =Титульный!$D$10-2 -> 2021 | H61: 0.9869928571
B62: 1.7 | C62: Заявители, не относящиеся к вышеуказннаыми категориям свыше 15 кВт до 150 кВт | D62: =173098.33/1000/18*6 -> 57.70 | E62: 6.00 | F62: 470.00 | G62: =Титульный!$D$10-2 -> 2021 | H62: 9.616573889
B63: 1.8 | C63: Заявители, не относящиеся к вышеуказннаыми категориям свыше 150 кВт до 670 кВт | D63: =173098.33/1000/18*3 -> 28.85 | E63: 3.00 | F63: 800.00 | G63: =Титульный!$D$10-2 -> 2021 | H63: 9.616573889
B64: 1.9 | C64: Заявители, не относящиеся к вышеуказннаыми категориям свыше 670 кВт | D64: =173098.33/18*2/1000 -> 19.23 | E64: 2.00 | F64: 2,305.00 | G64: =Титульный!$D$10-2 -> 2021 | H64: 9.616573889
B65: 2 | C65: Проверка сетевой организацией выполнения технических условий Заявителем | D65: =D66+D73 -> 179.98 | E65: =E66+E73 -> 32.00 | F65: 4,362.50 | G65: =Титульный!$D$10-2 -> 2021 | H65: 5.624395625
B66: 2.1 | C66: Выдача сетевой организацией уведомления об обеспечении сетевой организацией возможности присоединения к электрическим сетям Заявителям, указанным в абзаце шестом пункта 24 Методических указаний по определению размера платы за технологическое присоединение к электрическим сетям | D66: =SUM(D67:D72) -> 82.25 | E66: =SUM(E67:E72) -> 21.00 | F66: =SUM(F67:F72) -> 787.50 | G66: =Титульный!$D$10-2 -> 2021 | H66: 3.916544683
B67: 2.1.1 | C67: п.12(1). Юридические лице или индивидуальные предприниматели в целях технологического присоединения по второй или третьей категории надежности энергопринимающих устройств, максимальная мощность которых составляет до 150 кВт включительно, в случае если технологическое присоединение энергопринимающих устройств таких заявителей осуществляется на уровне напряжения 0,4 кВ и ниже | D67: =20.05357/14*4+159927.09/1000/18*7 -> 67.92 | E67: 11.00 | F67: 652.50 | G67: =Титульный!$D$10-2 -> 2021 | H67: 6.174859978
B68: 2.1.2 | C68: п.13(2). Юридические лица или индивидуальные предприниматели в целях технологического присоединения объектов микрогенерации к объектам электросетевого хозяйства с уровнем напряжения до 1000 В, в случае если технологическое присоединение энергопринимающих устройств таких заявителей осуществляется на уровне напряжения 0,4 кВ и ниже | D68: 0.00 | E68: 0.00 | F68: 0.00 | G68: =Титульный!$D$10-2 -> 2021 | H68: Заполните все столбцы
B69: 2.1.3 | C69: п.13(3). Юридические лица или индивидуальные предприниматели в целях одновременного технологического присоединения к объектам электросетевого хозяйства с уровнем напряжения до 1000 В энергопринимающих устройств, максимальная мощность которых составляет до 150 кВт включительно (с учетом ранее присоединенных в данной точке присоединения энергопринимающих устройств), электроснабжение которых предусматривается по одному источнику, и объектов микрогенерации, в случае если технологическое присоединение энергопринимающих устройств таких заявителей осуществляется на уровне напряжения 0,4 кВ и ниже | D69: 0.00 | E69: 0.00 | F69: 0.00 | G69: =Титульный!$D$10-2 -> 2021 | H69: Заполните все столбцы
B70: 2.1.4 | C70: п.13(4). Физические лица в целях технологического присоединения объекта микрогенерации к объектам электросетевого хозяйства с уровнем напряжения до 1000 В, в случае если технологическое присоединение энергопринимающих устройств таких заявителей осуществляется на уровне напряжения 0,4 кВ и ниже | D70: 0.00 | E70: 0.00 | F70: 0.00 | G70: =Титульный!$D$10-2 -> 2021 | H70: Заполните все столбцы
B71: 2.1.5 | C71: п.13(5). Физические лица в целях одновременного технологического присоединения к объектам электросетевого хозяйства с уровнем напряжения до 1000 В энергопринимающих устройств, максимальная мощность которых составляет до 150 кВт включительно (с учетом ранее присоединенных в данной точке присоединения энергопринимающих устройств), которые используются для бытовых и иных нужд, не связанных с осуществлением предпринимательской деятельности, и электроснабжение которых предусматривается по одному источнику, и объектов микрогенерации, в случае если технологическое присоединение энергопринимающих устройств таких заявителей осуществляется на уровне напряжения 0,4 кВ и ниже | D71: 0.00 | E71: 0.00 | F71: 0.00 | G71: =Титульный!$D$10-2 -> 2021 | H71: Заполните все столбцы
B72: 2.1.6 | C72: п.14. Физические лица в целях технологического присоединения энергопринимающих устройств, максимальная мощность которых составляет до 15 кВт включительно (с учетом ранее присоединенных в данной точке присоединения энергопринимающих устройств), которые используются для бытовых и иных нужд, не связанных с осуществлением предпринимательской деятельности, и электроснабжение которых предусматривается по одному источнику, в случае если технологическое присоединение энергопринимающих устройств таких заявителей осуществляется на уровне напряжения 0,4 кВ и ниже | D72: =20053.57/1000/14*10 -> 14.32 | E72: =9+1 -> 10.00 | F72: =120+15 -> 135.00 | G72: =Титульный!$D$10-2 -> 2021 | H72: 1.432397857
B73: 2.2 | C73: Проверка сетевой организацией выполнения технических условий Заявителями, указанными в абзаце седьмом пункта 24 Методических указаний по определению размера платы за технологическое присоединение к электрическим сетям | D73: =SUM(D74:D76) -> 97.73 | E73: =SUM(E74:E76) -> 11.00 | F73: =SUM(F74:F76) -> 3,575.00 | G73: =Титульный!$D$10-2 -> 2021 | H73: 8.884838333
B74: 2.2.1 | C74: Заявители, не относящиеся к вышеуказннаыми категориям свыше 15 кВт до 150 кВт | D74: =159927.09/1000/18*6 -> 53.31 | E74: 6.00 | F74: 470.00 | G74: =Титульный!$D$10-2 -> 2021 | H74: 8.884838333
B75: 2.2.2 | C75: Заявители, не относящиеся к вышеуказннаыми категориям свыше 150 кВт до 670 кВт | D75: =159927.09/1000/18*3 -> 26.65 | E75: 3.00 | F75: 800.00 | G75: =Титульный!$D$10-2 -> 2021 | H75: 8.884838333
B76: 2.2.3 | C76: Заявители, не относящиеся к вышеуказннаыми категориям свыше 670 кВт | D76: =159927.09/1000/18*2 -> 17.77 | E76: 2.00 | F76: 2,305.00 | G76: =Титульный!$D$10-2 -> 2021 | H76: 8.884838333

Sheet Ставка 2. (ВЛ)
C2: Расходы на строительство введенных в эксплуатацию объектов электросетевого хозяйства для целей технологического присоединения и для целей реализации иных мероприятий инвестиционной программы территориальной сетевой организации
C6: ДЛЯ НАСЕЛЕННЫХ ПУНКТОВ ВСЕХ ТЕРРИТОРИЙ
C8: N п/п | D8: Технический код ставки | E8: Обозначение ставки | F8: Наименование ставки | G8: Объект электросетевого хозяйства | H8: Территория | I8: Опоры | J8: Опоры (за исключением) Технический столбец | K8: Изоляция | L8: Материал провода | M8: Сечение | N8: Количество цепей | O8: Напряжение | P8: Год ввода объекта | Q8: Протяженность линий электропередачи, км | R8: Присоединенная максимальная мощность, кВт (указывается только до 670кВт, если больше не указывается) | S8: Общие расходы на строительство объекта, руб. (без НДС) | T8: Расходы на строительство единицы ВЛ, руб./км | U8: Наименование папки | V8: Источник финансирования
C9: 1 | D9: =C$9+1 -> 2 | E9: =D$9+1 -> 3 | F9: 4 | G9: 5 | H9: 6 | I9: 7 | J9: Технический | K9: =I$9+1 -> 8 | L9: =K$9+1 -> 9 | M9: 10 | N9: 11 | O9: 12 | P9: 13 | Q9: 14 | R9: 15 | S9: 16 | T9: 17 | U9: 18 | V9: 19
C10: 2. | M10: Строительство воздушных линий
B11: X | C11: =ROW($C11)-12 -> -2.1 | D11: =IF(OR($H11="",$I11="",$K11="",$L11="",$M11="",$N11="",$O11=""),"Заполните все столбцы",LEFT($H11,2)&"."&"2."&LEFT($I11,1)&"."&LEFT($K11,1)&"."&LEFT($L11,1)&"."&LEFT($M11,1)&"."&LEFT($N11,1)&"."&LEFT($J11,1)) -> Заполните все столбцы | E11: =IFERROR("С "&(MID($D11,4,LEN($D11)))&" "&(RIGHT($H11,LEN($H11)-3))&","&(RIGHT($O11,LEN($O11)-2)),"Заполните все столбцы") -> Заполните все столбцы | F11: =IFERROR(LOWER("воздушные линии на "&VLOOKUP($I11,'1.1Назв. объ. эл. сетевого хоз.'!$A$2:$B$24,2,0)&" "&VLOOKUP($K11,'1.1Назв. объ. эл. сетевого хоз.'!$A$2:$B$24,2,0)&" "&VLOOKUP($L11,'1.1Назв. объ. эл. сетевого хоз.'!$A$2:$B$24,2,0)&" проводом "&"сечением "&VLOOKUP($M11,'1.1Назв. объ. эл. сетевого хоз.'!$A$2:$B$24,2,0)&" "&VLOOKUP($N11,'1.1Назв. объ. эл. сетевого хоз.'!$A$2:$B$24,2,0)),"Заполните все столбцы") -> Заполните все столбцы | G11: Название объекта | T11: =IF(OR($S11="",$Q11=""),"Заполните все столбцы",IF(AND(IF(AND(S11<>0,Q11<>0),S11/Q11,0)>=1000000,IF(AND(S11<>0,Q11<>0),S11/Q11,0)<=20000000),IF(AND(S11<>0,Q11<>0),S11/Q11,0),"Значение расходов вне возможного диапазона")) -> Заполните все столбцы
B12: TAG | G12: Добавить строки
B13: X | C13: =ROW($C13)-12 -> 2.1 | D13: =IF(OR($H13="",$I13="",$K13="",$L13="",$M13="",$N13="",$O13=""),"Заполните все столбцы",LEFT($H13,2)&"."&"2."&LEFT($I13,1)&"."&LEFT($K13,1)&"."&LEFT($L13,1)&"."&LEFT($M13,1)&"."&LEFT($N13,1)&"."&LEFT($J13,1)) -> Заполните все столбцы | E13: =IFERROR("С "&(MID($D13,4,LEN($D13)))&" "&(RIGHT($H13,LEN($H13)-3))&","&(RIGHT($O13,LEN($O13)-2)),"Заполните все столбцы") -> Заполните все столбцы | F13: =IFERROR(LOWER("воздушные линии на "&VLOOKUP($I13,'1.1Назв. объ. эл. сетевого хоз.'!$A$2:$B$24,2,0)&" "&VLOOKUP($K13,'1.1Назв. объ. эл. сетевого хоз.'!$A$2:$B$24,2,0)&" "&VLOOKUP($L13,'1.1Назв. объ. эл. сетевого хоз.'!$A$2:$B$24,2,0)&" проводом "&"сечением "&VLOOKUP($M13,'1.1Назв. объ. эл. сетевого хоз.'!$A$2:$B$24,2,0)&" "&VLOOKUP($N13,'1.1Назв. объ. эл. сетевого хоз.'!$A$2:$B$24,2,0)),"Заполните все столбцы") -> Заполните все столбцы | G13: Название объекта | T13: =IF(OR($S13="",$Q13=""),"Заполните все столбцы",IF(AND(IF(AND(S13<>0,Q13<>0),S13/Q13,0)>=1000000,IF(AND(S13<>0,Q13<>0),S13/Q13,0)<=20000000),IF(AND(S13<>0,Q13<>0),S13/Q13,0),"Значение расходов вне возможного диапазона")) -> Заполните все столбцы
B14: X | C14: =ROW($C14)-12 -> 2.2 | D14: =IF(OR($H14="",$I14="",$K14="",$L14="",$M14="",$N14="",$O14=""),"Заполните все столбцы",LEFT($H14,2)&"."&"2."&LEFT($I14,1)&"."&LEFT($K14,1)&"."&LEFT($L14,1)&"."&LEFT($M14,1)&"."&LEFT($N14,1)&"."&LEFT($J14,1)) -> Заполните все столбцы | E14: =IFERROR("С "&(MID($D14,4,LEN($D14)))&" "&(RIGHT($H14,LEN($H14)-3))&","&(RIGHT($O14,LEN($O14)-2)),"Заполните все столбцы") -> Заполните все столбцы | F14: =IFERROR(LOWER("воздушные линии на "&VLOOKUP($I14,'1.1Назв. объ. эл. сетевого хоз.'!$A$2:$B$24,2,0)&" "&VLOOKUP($K14,'1.1Назв. объ. эл. сетевого хоз.'!$A$2:$B$24,2,0)&" "&VLOOKUP($L14,'1.1Назв. объ. эл. сетевого хоз.'!$A$2:$B$24,2,0)&" проводом "&"сечением "&VLOOKUP($M14,'1.1Назв. объ. эл. сетевого хоз.'!$A$2:$B$24,2,0)&" "&VLOOKUP($N14,'1.1Назв. объ. эл. сетевого хоз.'!$A$2:$B$24,2,0)),"Заполните все столбцы") -> Заполните все столбцы | G14: Название объекта | T14: =IF(OR($S14="",$Q14=""),"Заполните все столбцы",IF(AND(IF(AND(S14<>0,Q14<>0),S14/Q14,0)>=1000000,IF(AND(S14<>0,Q14<>0),S14/Q14,0)<=20000000),IF(AND(S14<>0,Q14<>0),S14/Q14,0),"Значение расходов вне возможного диапазона")) -> Заполните все столбцы
B15: X | C15: =ROW($C15)-12 -> 2.3 | D15: =IF(OR($H15="",$I15="",$K15="",$L15="",$M15="",$N15="",$O15=""),"Заполните все столбцы",LEFT($H15,2)&"."&"2."&LEFT($I15,1)&"."&LEFT($K15,1)&"."&LEFT($L15,1)&"."&LEFT($M15,1)&"."&LEFT($N15,1)&"."&LEFT($J15,1)) -> Заполните все столбцы | E15: =IFERROR("С "&(MID($D15,4,LEN($D15)))&" "&(RIGHT($H15,LEN($H15)-3))&","&(RIGHT($O15,LEN($O15)-2)),"Заполните все столбцы") -> Заполните все столбцы | F15: =IFERROR(LOWER("воздушные линии на "&VLOOKUP($I15,'1.1Назв. объ. эл. сетевого хоз.'!$A$2:$B$24,2,0)&" "&VLOOKUP($K15,'1.1Назв. объ. эл. сетевого хоз.'!$A$2:$B$24,2,0)&" "&VLOOKUP($L15,'1.1Назв. объ. эл. сетевого хоз.'!$A$2:$B$24,2,0)&" проводом "&"сечением "&VLOOKUP($M15,'1.1Назв. объ. эл. сетевого хоз.'!$A$2:$B$24,2,0)&" "&VLOOKUP($N15,'1.1Назв. объ. эл. сетевого хоз.'!$A$2:$B$24,2,0)),"Заполните все столбцы") -> Заполните все столбцы | G15: Название объекта | T15: =IF(OR($S15="",$Q15=""),"Заполните все столбцы",IF(AND(IF(AND(S15<>0,Q15<>0),S15/Q15,0)>=1000000,IF(AND(S15<>0,Q15<>0),S15/Q15,0)<=20000000),IF(AND(S15<>0,Q15<>0),S15/Q15,0),"Значение расходов вне возможного диапазона")) -> Заполните все столбцы
B16: X | C16: =ROW($C16)-12 -> 2.4 | D16: =IF(OR($H16="",$I16="",$K16="",$L16="",$M16="",$N16="",$O16=""),"Заполните все столбцы",LEFT($H16,2)&"."&"2."&LEFT($I16,1)&"."&LEFT($K16,1)&"."&LEFT($L16,1)&"."&LEFT($M16,1)&"."&LEFT($N16,1)&"."&LEFT($J16,1)) -> Заполните все столбцы | E16: =IFERROR("С "&(MID($D16,4,LEN($D16)))&" "&(RIGHT($H16,LEN($H16)-3))&","&(RIGHT($O16,LEN($O16)-2)),"Заполните все столбцы") -> Заполните все столбцы | F16: =IFERROR(LOWER("воздушные линии на "&VLOOKUP($I16,'1.1Назв. объ. эл. сетевого хоз.'!$A$2:$B$24,2,0)&" "&VLOOKUP($K16,'1.1Назв. объ. эл. сетевого хоз.'!$A$2:$B$24,2,0)&" "&VLOOKUP($L16,'1.1Назв. объ. эл. сетевого хоз.'!$A$2:$B$24,2,0)&" проводом "&"сечением "&VLOOKUP($M16,'1.1Назв. объ. эл. сетевого хоз.'!$A$2:$B$24,2,0)&" "&VLOOKUP($N16,'1.1Назв. объ. эл. сетевого хоз.'!$A$2:$B$24,2,0)),"Заполните все столбцы") -> Заполните все столбцы | G16: Название объекта | T16: =IF(OR($S16="",$Q16=""),"Заполните все столбцы",IF(AND(IF(AND(S16<>0,Q16<>0),S16/Q16,0)>=1000000,IF(AND(S16<>0,Q16<>0),S16/Q16,0)<=20000000),IF(AND(S16<>0,Q16<>0),S16/Q16,0),"Значение расходов вне возможного диапазона")) -> Заполните все столбцы
B17: X | C17: =ROW($C17)-12 -> 2.5 | D17: =IF(OR($H17="",$I17="",$K17="",$L17="",$M17="",$N17="",$O17=""),"Заполните все столбцы",LEFT($H17,2)&"."&"2."&LEFT($I17,1)&"."&LEFT($K17,1)&"."&LEFT($L17,1)&"."&LEFT($M17,1)&"."&LEFT($N17,1)&"."&LEFT($J17,1)) -> Заполните все столбцы | E17: =IFERROR("С "&(MID($D17,4,LEN($D17)))&" "&(RIGHT($H17,LEN($H17)-3))&","&(RIGHT($O17,LEN($O17)-2)),"Заполните все столбцы") -> Заполните все столбцы | F17: =IFERROR(LOWER("воздушные линии на "&VLOOKUP($I17,'1.1Назв. объ. эл. сетевого хоз.'!$A$2:$B$24,2,0)&" "&VLOOKUP($K17,'1.1Назв. объ. эл. сетевого хоз.'!$A$2:$B$24,2,0)&" "&VLOOKUP($L17,'1.1Назв. объ. эл. сетевого хоз.'!$A$2:$B$24,2,0)&" проводом "&"сечением "&VLOOKUP($M17,'1.1Назв. объ. эл. сетевого хоз.'!$A$2:$B$24,2,0)&" "&VLOOKUP($N17,'1.1Назв. объ. эл. сетевого хоз.'!$A$2:$B$24,2,0)),"Заполните все столбцы") -> Заполните все столбцы | G17: Название объекта | T17: =IF(OR($S17="",$Q17=""),"Заполните все столбцы",IF(AND(IF(AND(S17<>0,Q17<>0),S17/Q17,0)>=1000000,IF(AND(S17<>0,Q17<>0),S17/Q17,0)<=20000000),IF(AND(S17<>0,Q17<>0),S17/Q17,0),"Значение расходов вне возможного диапазона")) -> Заполните все столбцы
B18: TAG | G18: Добавить строки

Sheet Наименования ставок (hidden)
C2: 2. воздушные линии | L2: 3. кабельные линии | T2: 4. пункты секционирования (реклоузеры, распределительные пункты, переключательные пункты) | Z2: 5. трансформаторные подстанции (ТП), за исключением распределительных трансформаторных подстанций (РТП), с уровнем напряжения до 35 кВ | AF2: 6. распределительные трансформаторные подстанции (РТП) с уровнем напряжения до 35 кВ | AK2: 7. подстанции уровнем напряжения 35 кВ и выше | AP2: 8. обеспечение средствами коммерческого учета электрической энергии (мощности)
A3: Ст | C3: территория | D3: опоры | E3: изоляция | F3: материал | G3: сечение | H3: количество цепей | I3: напряжение | L3: территория | M3: способ прокладки | N3: вид жилы | O3: изоляция | P3: сечение | Q3: количество кабелей | R3: напряжение | T3: территория | U3: техническое исполнение | V3: номинальный ток | W3: Количество ячеек | X3: напряжение | Z3: территория | AA3: количество трансформаторов | AB3: мощность трансформаторов | AC3: тип исполнения | AD3: напряжение | AF3: территория | AG3: количество трансформаторов | AH3: мощность трансформаторов | AI3: напряжение | AK3: территория | AL3: количество трансформаторов | AM3: мощность трансформаторов | AN3: напряжение | AP3: территория | AQ3: количество фаз | AR3: способ подключения | AS3: напряжение
A4: 1 | C4: Городское | D4: деревянных | E4: изолированым | F4: медным | G4: до 50 квадратных мм включительно | H4: 1. Одноцепные | I4: 1. 0,4 кВ и ниже | L4: город | M4: траншея | N4: одножильный | O4: резиновая или пластмассовая | P4: до 50 квадратных мм включительно | Q4: 1 | R4: 0,4 кВ и ниже | T4: город | U4: реклоузер | V4: до 100 А | W4: от 5 до 10 включительно | X4: 0,4 кВ и ниже | Z4: город | AA4: один | AB4: до 25 кВА включительно | AC4: столбового/мачтового | AD4: 6/0,4 кВ | AF4: город | AG4: один | AH4: до 25 кВА включительно | AI4: 6(10)/0,4 кВ | AK4: город | AL4: один | AM4: до 6,3 МВА включительно | AN4: 35/6(10) кВ | AP4: город | AQ4: однофазные | AR4: прямого включения | AS4: 0,4 кВ и ниже
A5: 2 | C5: Не городское | D5: металлических | E5: неизолированным | F5: стальным | G5: от 50 до 100 квадратных мм включительно | H5: 2. Двухцепные | I5: 2. 1 - 20 кВ | L5: не город | M5: блоки | N5: многожильный | O5: бумажная | P5: от 50 до 100 квадратных мм включительно | Q5: 2 | R5: 1 - 10 кВ | T5: не город | U5: линейные разъединители | V5: от 100 до 250 А включительно | W5: от 10 до 15 включительно | X5: 1 - 20 кВ | Z5: не город | AA5: два | AB5: от 25 до 100 кВА включительно | AC5: шкафного или киоскового | AD5: 10/0,4 кВ | AF5: не город | AG5: два | AH5: от 25 до 100 кВА включительно | AI5: 20/0,4 кВ | AK5: не город | AL5: два | AM5: от 6,3 МВА до 10 МВА включительно | AN5: 35/0,4 кВ | AP5: не город | AQ5: трехфазные | AR5: полукосвенного включения | AS5: 1 - 20 кВ
A6: 3 | D6: металлических, за исключением многогранных | F6: сталеалюминиевым | G6: от 100 до 200 квадратных мм включительно | I6: 3. 27,5 - 60 кВ | M6: каналы | P6: от 100 до 200 квадратных мм включительно | Q6: 3 | R6: 15 - 20 кВ | U6: выключатели нагрузки, устанавливаемые вне трансформаторных подстанций и распределительных и переключательных пунктов, | V6: от 250 до 500 А включительно | W6: свыше 15 | X6: 35 кВ | AB6: от 100 до 250 кВА включительно | AC6: блочного | AD6: 20/0,4 кВ | AH6: от 100 до 250 кВА включительно | AM6: от 10 МВА до 16 МВА включительно | AN6: 110/35 кВ | AR6: косвенного включения | AS6: 35 кВ
A7: 4 | D7: металлических многогранных | F7: алюминиевым | G7: от 200 до 500 квадратных мм включительно | I7: 4. 110 кВ и выше | M7: туннели и коллекторы | P7: от 200 до 250 квадратных мм включительно | Q7: 4 | R7: 27,5 - 60 кВ | U7: распределительные пункты (РП), за исключением комплектных распределительных устройств наружной установки (КРН, КРУН), | V7: от 500 до 1000 А включительно | X7: 110 кВ и выше | AB7: от 250 до 400 кВА включительно | AD7: 6/10 (10/6) кВ | AH7: от 250 до 400 кВА включительно | AM7: от 16 МВА до 25 МВА включительно | AN7: 110/6(10) кВ | AS7: 110 кВ и выше
A8: 5 | D8: железобетонных | G8: от 500 до 800 квадратных мм включительно | M8: галереи и эстакады | P8: от 250 до 300 квадратных мм включительно | Q8: более 4 | R8: 110 кВ и выше | U8: комплектные распределительные устройства наружной установки (КРН, КРУН) | V8: свыше 1000 А | AB8: от 400 до 1000 кВА включительно | AD8: 10/20 (20/10) кВ | AH8: от 400 до 1000 кВА включительно | AM8: от 25 МВА до 32 МВА включительно | AN8: 110/35/6(10) кВ
A9: 6 | G9: свыше 800 квадратных мм | M9: метод горизонтального наклонного бурения | P9: от 300 до 400 квадратных мм включительно | U9: переключательные пункты | AB9: от 1000 кВА до 1250 кВА | AD9: 6/20 (20/6) кВ | AH9: от 1000 кВА до 1250 кВА | AM9: от 32 МВА до 40 МВА включительно
M10: подводная прокладка | P10: от 400 до 500 квадратных мм включительно | AB10: от 1250 кВА до 1600 кВА включительно | AH10: от 1250 кВА до 1600 кВА включительно | AM10: от 40 МВА до 63 МВА включительно
C11: территория | D11: опоры | E11: изоляция | F11: материал | G11: сечение | H11: количество цепей | I11: напряжение | P11: от 500 до 800 квадратных мм включительно | AB11: от 1600 кВА до 2000 кВА включительно | AH11: от 1600 кВА до 2000 кВА включительно | AM11: от 63 МВА до 80 МВА включительно
C12: город | D12: деревянные | E12: изолированый | F12: медный | G12: до 50 квадратных мм включительно | H12: одноцепные | I12: 0,4 кВ и ниже | P12: свыше 800 квадратных мм | AB12: от 2000 кВА до 2500 кВА включительно | AH12: от 2000 кВА до 2500 кВА включительно | AM12: от 80 МВА до 100 МВА включительно
C13: не город | D13: металлические | E13: неизолированный | F13: стальной | G13: от 50 до 100 квадратных мм включительно | H13: двухцепные | I13: 1 - 20 кВ | AB13: от 2500 кВА до 3150 кВА включительно | AH13: от 2500 кВА до 3150 кВА включительно | AM13: свыше 100 МВА
D14: металлические, за исключением многогранных | F14: сталеалюминиевый | G14: от 100 до 200 квадратных мм включительно | I14: 27,5 - 60 кВ | AB14: от 3150 кВА до 4000 кВА включительно | AH14: от 3150 кВА до 4000 кВА включительно
D15: металлические многогранные | F15: алюминиевый | G15: от 200 до 500 квадратных мм включительно | I15: 110 кВ и выше | AB15: свыше 4000 кВА | AH15: свыше 4000 кВА
D16: железобетонные | G16: от 500 до 800 квадратных мм включительно
G17: свыше 800 квадратных мм

Sheet Ставка 3. (КЛ)
C2: Расходы на строительство введенных в эксплуатацию объектов электросетевого хозяйства для целей технологического присоединения и для целей реализации иных мероприятий инвестиционной программы территориальной сетевой организации
C6: ДЛЯ НАСЕЛЕННЫХ ПУНКТОВ ВСЕХ ТЕРРИТОРИЙ
C8: N п/п | D8: Технический код ставки | E8: Обозначение ставки | F8: Наименование ставки | G8: Объект электросетевого хозяйства | H8: Территория | I8: Способ прокладки | J8: Вид жилы | K8: Изоляция | L8: Сечение | M8: Количество кабелей | N8: Напряжение | O8: Год ввода объекта | P8: Протяженность линий электропередачи, км | Q8: Присоединенная максимальная мощность, кВт (указывается только до 670кВт, если больше не указывается) | R8: Общие расходы на строительство объекта, руб. (без НДС) | S8: Расходы на строительство единицы КЛ, руб./км | T8: Наименование папки | U8: Источник финансирования
C9: 1 | D9: =C$9+1 -> 2 | E9: =D$9+1 -> 3 | F9: 4 | G9: 5 | H9: 6 | I9: 7 | J9: 8 | K9: 9 | L9: 10 | M9: 11 | N9: 12 | O9: 13 | P9: 14 | Q9: 15 | R9: 16 | S9: 17 | T9: 18 | U9: 19
C10: 3. | L10: Строительство кабельных линий
B11: X | C11: =ROW($C11)-12 -> -3.1 | D11: =IF(OR($H11="",$I11="",$J11="",$K11="",$L11="",$M11="",$N11="",$O11=""),"Заполните все столбцы",LEFT($H11,2)&"."&"3."&LEFT($I11,1)&"."&LEFT($J11,1)&"."&LEFT($K11,1)&"."&LEFT($L11,1)&"."&LEFT($M11,1)) -> Заполните все столбцы | E11: =IFERROR("С "&(MID($D11,4,LEN($D11)))&" "&(RIGHT($H11,LEN($H11)-3))&","&(RIGHT($N11,LEN($N11)-2)),"Заполните все столбцы") -> Заполните все столбцы | F11: =IFERROR(LOWER("кабельные линии"&IF($I11="6) метод горизонтального наклонного бурения",VLOOKUP($I11,'1.1Назв. объ. эл. сетевого хоз.'!$D$2:$E$34,2,0)&" "&VLOOKUP($J11,'1.1Назв. объ. эл. сетевого хоз.'!$D$2:$E$34,2,0)&" c "&VLOOKUP($K11,'1.1Назв. объ. эл. сетевого хоз.'!$D$2:$E$34,2,0)&" изоляцией "&"сечением провода "&VLOOKUP($L11,'1.1Назв. объ. эл. сетевого хоз.'!$D$2:$E$34,2,0)&" "&IF($M11="5) более четырех","с количеством "&IF($I11="6) метод горизонтального наклонного бурения",VLOOKUP($M11,'1.1Назв. объ. эл. сетевого хоз.'!$D$2:$F$34,3,0),VLOOKUP($M11,'1.1Назв. объ. эл. сетевого хоз.'!$D$2:$E$34,2,0)),IF($I11="6) метод горизонтального наклонного бурения",VLOOKUP($M11,'1.1Назв. объ. эл. сетевого хоз.'!$D$2:$F$34,3,0),VLOOKUP($M11,'1.1Назв. объ. эл. сетевого хоз.'!$D$2:$E$34,2,0))),VLOOKUP($I11,'1.1Назв. объ. эл. сетевого хоз.'!$D$2:$E$34,2,0)&" "&VLOOKUP($J11,'1.1Назв. объ. эл. сетевого хоз.'!$D$2:$E$34,2,0)&" c "&VLOOKUP($K11,'1.1Назв. объ. эл. сетевого хоз.'!$D$2:$E$34,2,0)&" изоляцией "&"сечением провода "&VLOOKUP($L11,'1.1Назв. объ. эл. сетевого хоз.'!$D$2:$E$34,2,0)&" "&IF($M11="5) более четырех","с количеством "&IF($I11="6) метод горизонтального наклонного бурения",VLOOKUP($M11,'1.1Назв. объ. эл. сетевого хоз.'!$D$2:$F$34,3,0),VLOOKUP($M11,'1.1Назв. объ. эл. сетевого хоз.'!$D$2:$E$34,2,0)),IF($I11="6) метод горизонтального наклонного бурения",VLOOKUP($M11,'1.1Назв. объ. эл. сетевого хоз.'!$D$2:$F$34,3,0),VLOOKUP($M11,'1.1Назв. объ. эл. сетевого хоз.'!$D$2:$E$34,2,0)))&" "&VLOOKUP($I11,'1.1Назв. объ. эл. сетевого хоз.'!$D$2:$F$34,3,0))),"Заполните все столбцы") -> Заполните все столбцы | G11: Название объекта | S11: =IF(OR($R11="",$P11=""),"Заполните все столбцы",IF(AND(IF(AND(R11<>0,P11<>0),R11/P11,0)>=1000000,IF(AND(R11<>0,P11<>0),R11/P11,0)<=50000000),IF(AND(R11<>0,P11<>0),R11/P11,0),"Значение расходов вне возможного диапазона")) -> Заполните все столбцы
B12: TAG | G12: Добавить строки
B13: X | C13: =ROW($C13)-12 -> 3.1 | D13: =IF(OR($H13="",$I13="",$J13="",$K13="",$L13="",$M13="",$N13="",$O13=""),"Заполните все столбцы",LEFT($H13,2)&"."&"3."&LEFT($I13,1)&"."&LEFT($J13,1)&"."&LEFT($K13,1)&"."&LEFT($L13,1)&"."&LEFT($M13,1)) -> II.3.1.1.1.1.1 | E13: =IFERROR("С "&(MID($D13,4,LEN($D13)))&" "&(RIGHT($H13,LEN($H13)-3))&","&(RIGHT($N13,LEN($N13)-2)),"Заполните все столбцы") -> С 3.1.1.1.1.1 Не город, 0,4 кВ и ниже | F13: =IFERROR(LOWER("кабельные линии"&IF($I13="6) метод горизонтального наклонного бурения",VLOOKUP($I13,'1.1Назв. объ. эл. сетевого хоз.'!$D$2:$E$34,2,0)&" "&VLOOKUP($J13,'1.1Назв. объ. эл. сетевого хоз.'!$D$2:$E$34,2,0)&" c "&VLOOKUP($K13,'1.1Назв. объ. эл. сетевого хоз.'!$D$2:$E$34,2,0)&" изоляцией "&"сечением провода "&VLOOKUP($L13,'1.1Назв. объ. эл. сетевого хоз.'!$D$2:$E$34,2,0)&" "&IF($M13="5) более четырех","с количеством "&IF($I13="6) метод горизонтального наклонного бурения",VLOOKUP($M13,'1.1Назв. объ. эл. сетевого хоз.'!$D$2:$F$34,3,0),VLOOKUP($M13,'1.1Назв. объ. эл. сетевого хоз.'!$D$2:$E$34,2,0)),IF($I13="6) метод горизонтального наклонного бурения",VLOOKUP($M13,'1.1Назв. объ. эл. сетевого хоз.'!$D$2:$F$34,3,0),VLOOKUP($M13,'1.1Назв. объ. эл. сетевого хоз.'!$D$2:$E$34,2,0))),VLOOKUP($I13,'1.1Назв. объ. эл. сетевого хоз.'!$D$2:$E$34,2,0)&" "&VLOOKUP($J13,'1.1Назв. объ. эл. сетевого хоз.'!$D$2:$E$34,2,0)&" c "&VLOOKUP($K13,'1.1Назв. объ. эл. сетевого хоз.'!$D$2:$E$34,2,0)&" изоляцией "&"сечением провода "&VLOOKUP($L13,'1.1Назв. объ. эл. сетевого хоз.'!$D$2:$E$34,2,0)&" "&IF($M13="5) более четырех","с количеством "&IF($I13="6) метод горизонтального наклонного бурения",VLOOKUP($M13,'1.1Назв. объ. эл. сетевого хоз.'!$D$2:$F$34,3,0),VLOOKUP($M13,'1.1Назв. объ. эл. сетевого хоз.'!$D$2:$E$34,2,0)),IF($I13="6) метод горизонтального наклонного бурения",VLOOKUP($M13,'1.1Назв. объ. эл. сетевого хоз.'!$D$2:$F$34,3,0),VLOOKUP($M13,'1.1Назв. объ. эл. сетевого хоз.'!$D$2:$E$34,2,0)))&" "&VLOOKUP($I13,'1.1Назв. объ. эл. сетевого хоз.'!$D$2:$F$34,3,0))),"Заполните все столбцы") -> кабельные линии в траншеях одножильные c резиновой или пластмассовой изоляцией сечением провода до 50 квадратных мм включительно с одним кабелем в траншее | G13: КЛ-0,4 кВ ф. "Вышка РТС" марки ВБбШвнг 4х4 мм2 | H13: II) Не город | I13: 1) траншея | J13: 1) одножильный | K13: 1) резиновая или пластмассовая | L13: 1) до 50 квадратных мм включительно | M13: 1) один | N13: 1) 0,4 кВ и ниже | O13: 2019 | P13: 0.11 | Q13: 8.00 | R13: 954,851.50 | S13: =IF(OR($R13="",$P13=""),"Заполните все столбцы",IF(AND(IF(AND(R13<>0,P13<>0),R13/P13,0)>=1000000,IF(AND(R13<>0,P13<>0),R13/P13,0)<=50000000),IF(AND(R13<>0,P13<>0),R13/P13,0),"Значение расходов вне возможного диапазона")) -> 8,680,468.18 | T13: 3.1.С3.2019 | U13: Технологическое присоединение
B14: X | C14: =ROW($C14)-12 -> 3.2 | D14: =IF(OR($H14="",$I14="",$J14="",$K14="",$L14="",$M14="",$N14="",$O14=""),"Заполните все столбцы",LEFT($H14,2)&"."&"3."&LEFT($I14,1)&"."&LEFT($J14,1)&"."&LEFT($K14,1)&"."&LEFT($L14,1)&"."&LEFT($M14,1)) -> Заполните все столбцы | E14: =IFERROR("С "&(MID($D14,4,LEN($D14)))&" "&(RIGHT($H14,LEN($H14)-3))&","&(RIGHT($N14,LEN($N14)-2)),"Заполните все столбцы") -> Заполните все столбцы | F14: =IFERROR(LOWER("кабельные линии"&IF($I14="6) метод горизонтального наклонного бурения",VLOOKUP($I14,'1.1Назв. объ. эл. сетевого хоз.'!$D$2:$E$34,2,0)&" "&VLOOKUP($J14,'1.1Назв. объ. эл. сетевого хоз.'!$D$2:$E$34,2,0)&" c "&VLOOKUP($K14,'1.1Назв. объ. эл. сетевого хоз.'!$D$2:$E$34,2,0)&" изоляцией "&"сечением провода "&VLOOKUP($L14,'1.1Назв. объ. эл. сетевого хоз.'!$D$2:$E$34,2,0)&" "&IF($M14="5) более четырех","с количеством "&IF($I14="6) метод горизонтального наклонного бурения",VLOOKUP($M14,'1.1Назв. объ. эл. сетевого хоз.'!$D$2:$F$34,3,0),VLOOKUP($M14,'1.1Назв. объ. эл. сетевого хоз.'!$D$2:$E$34,2,0)),IF($I14="6) метод горизонтального наклонного бурения",VLOOKUP($M14,'1.1Назв. объ. эл. сетевого хоз.'!$D$2:$F$34,3,0),VLOOKUP($M14,'1.1Назв. объ. эл. сетевого хоз.'!$D$2:$E$34,2,0))),VLOOKUP($I14,'1.1Назв. объ. эл. сетевого хоз.'!$D$2:$E$34,2,0)&" "&VLOOKUP($J14,'1.1Назв. объ. эл. сетевого хоз.'!$D$2:$E$34,2,0)&" c "&VLOOKUP($K14,'1.1Назв. объ. эл. сетевого хоз.'!$D$2:$E$34,2,0)&" изоляцией "&"сечением провода "&VLOOKUP($L14,'1.1Назв. объ. эл. сетевого хоз.'!$D$2:$E$34,2,0)&" "&IF($M14="5) более четырех","с количеством "&IF($I14="6) метод горизонтального наклонного бурения",VLOOKUP($M14,'1.1Назв. объ. эл. сетевого хоз.'!$D$2:$F$34,3,0),VLOOKUP($M14,'1.1Назв. объ. эл. сетевого хоз.'!$D$2:$E$34,2,0)),IF($I14="6) метод горизонтального наклонного бурения",VLOOKUP($M14,'1.1Назв. объ. эл. сетевого хоз.'!$D$2:$F$34,3,0),VLOOKUP($M14,'1.1Назв. объ. эл. сетевого хоз.'!$D$2:$E$34,2,0)))&" "&VLOOKUP($I14,'1.1Назв. объ. эл. сетевого хоз.'!$D$2:$F$34,3,0))),"Заполните все столбцы") -> Заполните все столбцы | G14: Название объекта | S14: =IF(OR($R14="",$P14=""),"Заполните все столбцы",IF(AND(IF(AND(R14<>0,P14<>0),R14/P14,0)>=1000000,IF(AND(R14<>0,P14<>0),R14/P14,0)<=50000000),IF(AND(R14<>0,P14<>0),R14/P14,0),"Значение расходов вне возможного диапазона")) -> Заполните все столбцы
B15: X | C15: =ROW($C15)-12 -> 3.3 | D15: =IF(OR($H15="",$I15="",$J15="",$K15="",$L15="",$M15="",$N15="",$O15=""),"Заполните все столбцы",LEFT($H15,2)&"."&"3."&LEFT($I15,1)&"."&LEFT($J15,1)&"."&LEFT($K15,1)&"."&LEFT($L15,1)&"."&LEFT($M15,1)) -> Заполните все столбцы | E15: =IFERROR("С "&(MID($D15,4,LEN($D15)))&" "&(RIGHT($H15,LEN($H15)-3))&","&(RIGHT($N15,LEN($N15)-2)),"Заполните все столбцы") -> Заполните все столбцы | F15: =IFERROR(LOWER("кабельные линии"&IF($I15="6) метод горизонтального наклонного бурения",VLOOKUP($I15,'1.1Назв. объ. эл. сетевого хоз.'!$D$2:$E$34,2,0)&" "&VLOOKUP($J15,'1.1Назв. объ. эл. сетевого хоз.'!$D$2:$E$34,2,0)&" c "&VLOOKUP($K15,'1.1Назв. объ. эл. сетевого хоз.'!$D$2:$E$34,2,0)&" изоляцией "&"сечением провода "&VLOOKUP($L15,'1.1Назв. объ. эл. сетевого хоз.'!$D$2:$E$34,2,0)&" "&IF($M15="5) более четырех","с количеством "&IF($I15="6) метод горизонтального наклонного бурения",VLOOKUP($M15,'1.1Назв. объ. эл. сетевого хоз.'!$D$2:$F$34,3,0),VLOOKUP($M15,'1.1Назв. объ. эл. сетевого хоз.'!$D$2:$E$34,2,0)),IF($I15="6) метод горизонтального наклонного бурения",VLOOKUP($M15,'1.1Назв. объ. эл. сетевого хоз.'!$D$2:$F$34,3,0),VLOOKUP($M15,'1.1Назв. объ. эл. сетевого хоз.'!$D$2:$E$34,2,0))),VLOOKUP($I15,'1.1Назв. объ. эл. сетевого хоз.'!$D$2:$E$34,2,0)&" "&VLOOKUP($J15,'1.1Назв. объ. эл. сетевого хоз.'!$D$2:$E$34,2,0)&" c "&VLOOKUP($K15,'1.1Назв. объ. эл. сетевого хоз.'!$D$2:$E$34,2,0)&" изоляцией "&"сечением провода "&VLOOKUP($L15,'1.1Назв. объ. эл. сетевого хоз.'!$D$2:$E$34,2,0)&" "&IF($M15="5) более четырех","с количеством "&IF($I15="6) метод горизонтального наклонного бурения",VLOOKUP($M15,'1.1Назв. объ. эл. сетевого хоз.'!$D$2:$F$34,3,0),VLOOKUP($M15,'1.1Назв. объ. эл. сетевого хоз.'!$D$2:$E$34,2,0)),IF($I15="6) метод горизонтального наклонного бурения",VLOOKUP($M15,'1.1Назв. объ. эл. сетевого хоз.'!$D$2:$F$34,3,0),VLOOKUP($M15,'1.1Назв. объ. эл. сетевого хоз.'!$D$2:$E$34,2,0)))&" "&VLOOKUP($I15,'1.1Назв. объ. эл. сетевого хоз.'!$D$2:$F$34,3,0))),"Заполните все столбцы") -> Заполните все столбцы | G15: Название объекта | S15: =IF(OR($R15="",$P15=""),"Заполните все столбцы",IF(AND(IF(AND(R15<>0,P15<>0),R15/P15,0)>=1000000,IF(AND(R15<>0,P15<>0),R15/P15,0)<=50000000),IF(AND(R15<>0,P15<>0),R15/P15,0),"Значение расходов вне возможного диапазона")) -> Заполните все столбцы
B16: X | C16: =ROW($C16)-12 -> 3.4 | D16: =IF(OR($H16="",$I16="",$J16="",$K16="",$L16="",$M16="",$N16="",$O16=""),"Заполните все столбцы",LEFT($H16,2)&"."&"3."&LEFT($I16,1)&"."&LEFT($J16,1)&"."&LEFT($K16,1)&"."&LEFT($L16,1)&"."&LEFT($M16,1)) -> Заполните все столбцы | E16: =IFERROR("С "&(MID($D16,4,LEN($D16)))&" "&(RIGHT($H16,LEN($H16)-3))&","&(RIGHT($N16,LEN($N16)-2)),"Заполните все столбцы") -> Заполните все столбцы | F16: =IFERROR(LOWER("кабельные линии"&IF($I16="6) метод горизонтального наклонного бурения",VLOOKUP($I16,'1.1Назв. объ. эл. сетевого хоз.'!$D$2:$E$34,2,0)&" "&VLOOKUP($J16,'1.1Назв. объ. эл. сетевого хоз.'!$D$2:$E$34,2,0)&" c "&VLOOKUP($K16,'1.1Назв. объ. эл. сетевого хоз.'!$D$2:$E$34,2,0)&" изоляцией "&"сечением провода "&VLOOKUP($L16,'1.1Назв. объ. эл. сетевого хоз.'!$D$2:$E$34,2,0)&" "&IF($M16="5) более четырех","с количеством "&IF($I16="6) метод горизонтального наклонного бурения",VLOOKUP($M16,'1.1Назв. объ. эл. сетевого хоз.'!$D$2:$F$34,3,0),VLOOKUP($M16,'1.1Назв. объ. эл. сетевого хоз.'!$D$2:$E$34,2,0)),IF($I16="6) метод горизонтального наклонного бурения",VLOOKUP($M16,'1.1Назв. объ. эл. сетевого хоз.'!$D$2:$F$34,3,0),VLOOKUP($M16,'1.1Назв. объ. эл. сетевого хоз.'!$D$2:$E$34,2,0))),VLOOKUP($I16,'1.1Назв. объ. эл. сетевого хоз.'!$D$2:$E$34,2,0)&" "&VLOOKUP($J16,'1.1Назв. объ. эл. сетевого хоз.'!$D$2:$E$34,2,0)&" c "&VLOOKUP($K16,'1.1Назв. объ. эл. сетевого хоз.'!$D$2:$E$34,2,0)&" изоляцией "&"сечением провода "&VLOOKUP($L16,'1.1Назв. объ. эл. сетевого хоз.'!$D$2:$E$34,2,0)&" "&IF($M16="5) более четырех","с количеством "&IF($I16="6) метод горизонтального наклонного бурения",VLOOKUP($M16,'1.1Назв. объ. эл. сетевого хоз.'!$D$2:$F$34,3,0),VLOOKUP($M16,'1.1Назв. объ. эл. сетевого хоз.'!$D$2:$E$34,2,0)),IF($I16="6) метод горизонтального наклонного бурения",VLOOKUP($M16,'1.1Назв. объ. эл. сетевого хоз.'!$D$2:$F$34,3,0),VLOOKUP($M16,'1.1Назв. объ. эл. сетевого хоз.'!$D$2:$E$34,2,0)))&" "&VLOOKUP($I16,'1.1Назв. объ. эл. сетевого хоз.'!$D$2:$F$34,3,0))),"Заполните все столбцы") -> Заполните все столбцы | G16: Название объекта | S16: =IF(OR($R16="",$P16=""),"Заполните все столбцы",IF(AND(IF(AND(R16<>0,P16<>0),R16/P16,0)>=1000000,IF(AND(R16<>0,P16<>0),R16/P16,0)<=50000000),IF(AND(R16<>0,P16<>0),R16/P16,0),"Значение расходов вне возможного диапазона")) -> Заполните все столбцы
B17: X | C17: =ROW($C17)-12 -> 3.5 | D17: =IF(OR($H17="",$I17="",$J17="",$K17="",$L17="",$M17="",$N17="",$O17=""),"Заполните все столбцы",LEFT($H17,2)&"."&"3."&LEFT($I17,1)&"."&LEFT($J17,1)&"."&LEFT($K17,1)&"."&LEFT($L17,1)&"."&LEFT($M17,1)) -> Заполните все столбцы | E17: =IFERROR("С "&(MID($D17,4,LEN($D17)))&" "&(RIGHT($H17,LEN($H17)-3))&","&(RIGHT($N17,LEN($N17)-2)),"Заполните все столбцы") -> Заполните все столбцы | F17: =IFERROR(LOWER("кабельные линии"&IF($I17="6) метод горизонтального наклонного бурения",VLOOKUP($I17,'1.1Назв. объ. эл. сетевого хоз.'!$D$2:$E$34,2,0)&" "&VLOOKUP($J17,'1.1Назв. объ. эл. сетевого хоз.'!$D$2:$E$34,2,0)&" c "&VLOOKUP($K17,'1.1Назв. объ. эл. сетевого хоз.'!$D$2:$E$34,2,0)&" изоляцией "&"сечением провода "&VLOOKUP($L17,'1.1Назв. объ. эл. сетевого хоз.'!$D$2:$E$34,2,0)&" "&IF($M17="5) более четырех","с количеством "&IF($I17="6) метод горизонтального наклонного бурения",VLOOKUP($M17,'1.1Назв. объ. эл. сетевого хоз.'!$D$2:$F$34,3,0),VLOOKUP($M17,'1.1Назв. объ. эл. сетевого хоз.'!$D$2:$E$34,2,0)),IF($I17="6) метод горизонтального наклонного бурения",VLOOKUP($M17,'1.1Назв. объ. эл. сетевого хоз.'!$D$2:$F$34,3,0),VLOOKUP($M17,'1.1Назв. объ. эл. сетевого хоз.'!$D$2:$E$34,2,0))),VLOOKUP($I17,'1.1Назв. объ. эл. сетевого хоз.'!$D$2:$E$34,2,0)&" "&VLOOKUP($J17,'1.1Назв. объ. эл. сетевого хоз.'!$D$2:$E$34,2,0)&" c "&VLOOKUP($K17,'1.1Назв. объ. эл. сетевого хоз.'!$D$2:$E$34,2,0)&" изоляцией "&"сечением провода "&VLOOKUP($L17,'1.1Назв. объ. эл. сетевого хоз.'!$D$2:$E$34,2,0)&" "&IF($M17="5) более четырех","с количеством "&IF($I17="6) метод горизонтального наклонного бурения",VLOOKUP($M17,'1.1Назв. объ. эл. сетевого хоз.'!$D$2:$F$34,3,0),VLOOKUP($M17,'1.1Назв. объ. эл. сетевого хоз.'!$D$2:$E$34,2,0)),IF($I17="6) метод горизонтального наклонного бурения",VLOOKUP($M17,'1.1Назв. объ. эл. сетевого хоз.'!$D$2:$F$34,3,0),VLOOKUP($M17,'1.1Назв. объ. эл. сетевого хоз.'!$D$2:$E$34,2,0)))&" "&VLOOKUP($I17,'1.1Назв. объ. эл. сетевого хоз.'!$D$2:$F$34,3,0))),"Заполните все столбцы") -> Заполните все столбцы | G17: Название объекта | S17: =IF(OR($R17="",$P17=""),"Заполните все столбцы",IF(AND(IF(AND(R17<>0,P17<>0),R17/P17,0)>=1000000,IF(AND(R17<>0,P17<>0),R17/P17,0)<=50000000),IF(AND(R17<>0,P17<>0),R17/P17,0),"Значение расходов вне возможного диапазона")) -> Заполните все столбцы
B18: TAG | G18: Добавить строки

Sheet Ставка 4.1.-4.3.
C2: Расходы на строительство введенных в эксплуатацию объектов электросетевого хозяйства для целей технологического присоединения и для целей реализации иных мероприятий инвестиционной программы территориальной сетевой организации
C6: ДЛЯ НАСЕЛЕННЫХ ПУНКТОВ ВСЕХ ТЕРРИТОРИЙ
C8: N п/п | D8: Технический код ставки | E8: Обозначение ставки | F8: Наименование ставки | G8: Объект электросетевого хозяйства | H8: Территория | I8: Техническое исполнение | J8: Номинальный ток | K8: Напряжение | L8: Год ввода объекта | M8: Количество пунктов секционирования, шт. | N8: Общая трансформаторная мощность, кВт | O8: Присоединенная максимальная мощность, кВт (указывается только до 670кВт, если больше не указывается) | P8: Общие расходы на строительство объекта, руб. (без НДС) | Q8: Расходы на строительство единицы, руб./шт. | R8: Наименование папки | S8: Источник финансирования
C9: 1 | D9: =C$9+1 -> 2 | E9: =D$9+1 -> 3 | F9: 4 | G9: 5 | H9: 6 | I9: 7 | J9: 8 | K9: 9 | L9: 10 | M9: 11 | N9: 12 | O9: 13 | P9: 14 | Q9: 15 | R9: 16 | S9: 17
C10: 4. | K10: Реклоузеры, линейные разъединители, выключатели нагрузки
B11: X | C11: =ROW($C11)-12 -> -4.1 | D11: =IF(OR($H11="",$I11="",$J11="",$K11=""),"Заполните все столбцы",LEFT($H11,2)&"."&"4."&LEFT($I11,1)&"."&LEFT($J11,1)) -> Заполните все столбцы | E11: =IFERROR("С "&(MID($D11,4,LEN($D11)))&" "&(RIGHT($H11,LEN($H11)-3))&","&(RIGHT($K11,LEN($K11)-2)),"Заполните все столбцы") -> Заполните все столбцы | F11: =IFERROR(VLOOKUP($I11,'1.1Назв. объ. эл. сетевого хоз.'!$H$2:$J$33,2,0)&" номинальным током "&VLOOKUP($J11,'1.1Назв. объ. эл. сетевого хоз.'!$H$2:$J$33,2,0),"Заполните все столбцы") -> Заполните все столбцы | G11: Название объекта | Q11: =IF(AND(P11<>0,N11<>0),P11/N11,0) -> 0.00
B12: TAG | G12: Добавить строки
B13: X | C13: =ROW($C13)-12 -> 4.1 | D13: =IF(OR($H13="",$I13="",$J13="",$K13=""),"Заполните все столбцы",LEFT($H13,2)&"."&"4."&LEFT($I13,1)&"."&LEFT($J13,1)) -> Заполните все столбцы | E13: =IFERROR("С "&(MID($D13,4,LEN($D13)))&" "&(RIGHT($H13,LEN($H13)-3))&","&(RIGHT($K13,LEN($K13)-2)),"Заполните все столбцы") -> Заполните все столбцы | F13: =IFERROR(VLOOKUP($I13,'1.1Назв. объ. эл. сетевого хоз.'!$H$2:$J$33,2,0)&" номинальным током "&VLOOKUP($J13,'1.1Назв. объ. эл. сетевого хоз.'!$H$2:$J$33,2,0),"Заполните все столбцы") -> Заполните все столбцы | G13: Название объекта | Q13: =IF(AND(P13<>0,N13<>0),P13/N13,0) -> 0.00
B14: X | C14: =ROW($C14)-12 -> 4.2 | D14: =IF(OR($H14="",$I14="",$J14="",$K14=""),"Заполните все столбцы",LEFT($H14,2)&"."&"4."&LEFT($I14,1)&"."&LEFT($J14,1)) -> Заполните все столбцы | E14: =IFERROR("С "&(MID($D14,4,LEN($D14)))&" "&(RIGHT($H14,LEN($H14)-3))&","&(RIGHT($K14,LEN($K14)-2)),"Заполните все столбцы") -> Заполните все столбцы | F14: =IFERROR(VLOOKUP($I14,'1.1Назв. объ. эл. сетевого хоз.'!$H$2:$J$33,2,0)&" номинальным током "&VLOOKUP($J14,'1.1Назв. объ. эл. сетевого хоз.'!$H$2:$J$33,2,0),"Заполните все столбцы") -> Заполните все столбцы | G14: Название объекта | Q14: =IF(AND(P14<>0,N14<>0),P14/N14,0) -> 0.00
B15: X | C15: =ROW($C15)-12 -> 4.3 | D15: =IF(OR($H15="",$I15="",$J15="",$K15=""),"Заполните все столбцы",LEFT($H15,2)&"."&"4."&LEFT($I15,1)&"."&LEFT($J15,1)) -> Заполните все столбцы | E15: =IFERROR("С "&(MID($D15,4,LEN($D15)))&" "&(RIGHT($H15,LEN($H15)-3))&","&(RIGHT($K15,LEN($K15)-2)),"Заполните все столбцы") -> Заполните все столбцы | F15: =IFERROR(VLOOKUP($I15,'1.1Назв. объ. эл. сетевого хоз.'!$H$2:$J$33,2,0)&" номинальным током "&VLOOKUP($J15,'1.1Назв. объ. эл. сетевого хоз.'!$H$2:$J$33,2,0),"Заполните все столбцы") -> Заполните все столбцы | G15: Название объекта | Q15: =IF(AND(P15<>0,N15<>0),P15/N15,0) -> 0.00
B16: X | C16: =ROW($C16)-12 -> 4.4 | D16: =IF(OR($H16="",$I16="",$J16="",$K16=""),"Заполните все столбцы",LEFT($H16,2)&"."&"4."&LEFT($I16,1)&"."&LEFT($J16,1)) -> Заполните все столбцы | E16: =IFERROR("С "&(MID($D16,4,LEN($D16)))&" "&(RIGHT($H16,LEN($H16)-3))&","&(RIGHT($K16,LEN($K16)-2)),"Заполните все столбцы") -> Заполните все столбцы | F16: =IFERROR(VLOOKUP($I16,'1.1Назв. объ. эл. сетевого хоз.'!$H$2:$J$33,2,0)&" номинальным током "&VLOOKUP($J16,'1.1Назв. объ. эл. сетевого хоз.'!$H$2:$J$33,2,0),"Заполните все столбцы") -> Заполните все столбцы | G16: Название объекта | Q16: =IF(AND(P16<>0,N16<>0),P16/N16,0) -> 0.00
B17: X | C17: =ROW($C17)-12 -> 4.5 | D17: =IF(OR($H17="",$I17="",$J17="",$K17=""),"Заполните все столбцы",LEFT($H17,2)&"."&"4."&LEFT($I17,1)&"."&LEFT($J17,1)) -> Заполните все столбцы | E17: =IFERROR("С "&(MID($D17,4,LEN($D17)))&" "&(RIGHT($H17,LEN($H17)-3))&","&(RIGHT($K17,LEN($K17)-2)),"Заполните все столбцы") -> Заполните все столбцы | F17: =IFERROR(VLOOKUP($I17,'1.1Назв. объ. эл. сетевого хоз.'!$H$2:$J$33,2,0)&" номинальным током "&VLOOKUP($J17,'1.1Назв. объ. эл. сетевого хоз.'!$H$2:$J$33,2,0),"Заполните все столбцы") -> Заполните все столбцы | G17: Название объекта | Q17: =IF(AND(P17<>0,N17<>0),P17/N17,0) -> 0.00
B18: TAG | G18: Добавить строки

Sheet Ставка 4.4.-4.6.
C2: Расходы на строительство введенных в эксплуатацию объектов электросетевого хозяйства для целей технологического присоединения и для целей реализации иных мероприятий инвестиционной программы территориальной сетевой организации
C6: ДЛЯ НАСЕЛЕННЫХ ПУНКТОВ ВСЕХ ТЕРРИТОРИЙ
C8: N п/п | D8: Технический код ставки | E8: Обозначение ставки | F8: Наименование ставки | G8: Объект электросетевого хозяйства | H8: Территория | I8: Техническое исполнение | J8: Номинальный ток | K8: Количество ячеек | L8: Напряжение | M8: Год ввода объекта | N8: Общая трансформаторная мощность, кВт | O8: Присоединенная максимальная мощность, кВт (указывается только до 670кВт, если больше не указывается) | P8: Расходы на строительство объекта, руб. (без НДС) | Q8: Наименование папки | R8: Источник финансирования
C9: 1 | D9: =C$9+1 -> 2 | E9: =D$9+1 -> 3 | F9: 4 | G9: 5 | H9: 6 | I9: 7 | J9: 8 | K9: 9 | L9: 10 | M9: 11 | N9: 12 | O9: 13 | P9: 14 | Q9: 15 | R9: 16
C10: 4. | G10: Распределительные пункты (РП), за исключением комплектных распределительных устройств наружной установки (КРН, КРУН), комплектные распределительные устройства наружной установки (КРН, КРУН) , переключательные пункты
B11: X | C11: =ROW($C11)-12 -> -4.1 | D11: =IF(OR($H11="",$I11="",$J11="",$K11="",$L11=""),"Заполните все столбцы",LEFT($H11,2)&"."&"4."&LEFT($I11,1)&"."&LEFT($J11,1)&"."&LEFT($K11,1)) -> Заполните все столбцы | E11: =IFERROR("С "&(MID($D11,4,LEN($D11)))&" "&(RIGHT($H11,LEN($H11)-3))&","&(RIGHT($L11,LEN($L11)-2)),"Заполните все столбцы") -> Заполните все столбцы | F11: =IFERROR(VLOOKUP($I11,'1.1Назв. объ. эл. сетевого хоз.'!$H$2:$J$33,2,0)&" номинальным током "&VLOOKUP($J11,'1.1Назв. объ. эл. сетевого хоз.'!$H$2:$J$33,2,0)&" с количеством ячеек "&VLOOKUP($K11,'1.1Назв. объ. эл. сетевого хоз.'!$H$2:$J$33,2,0),"Заполните все столбцы") -> Заполните все столбцы | G11: Название объекта
B12: TAG | G12: Добавить строки
B13: X | C13: =ROW($C13)-12 -> 4.1 | D13: =IF(OR($H13="",$I13="",$J13="",$K13="",$L13=""),"Заполните все столбцы",LEFT($H13,2)&"."&"4."&LEFT($I13,1)&"."&LEFT($J13,1)&"."&LEFT($K13,1)) -> Заполните все столбцы | E13: =IFERROR("С "&(MID($D13,4,LEN($D13)))&" "&(RIGHT($H13,LEN($H13)-3))&","&(RIGHT($L13,LEN($L13)-2)),"Заполните все столбцы") -> Заполните все столбцы | F13: =IFERROR(VLOOKUP($I13,'1.1Назв. объ. эл. сетевого хоз.'!$H$2:$J$33,2,0)&" номинальным током "&VLOOKUP($J13,'1.1Назв. объ. эл. сетевого хоз.'!$H$2:$J$33,2,0)&" с количеством ячеек "&VLOOKUP($K13,'1.1Назв. объ. эл. сетевого хоз.'!$H$2:$J$33,2,0),"Заполните все столбцы") -> Заполните все столбцы | G13: Название объекта
B14: X | C14: =ROW($C14)-12 -> 4.2 | D14: =IF(OR($H14="",$I14="",$J14="",$K14="",$L14=""),"Заполните все столбцы",LEFT($H14,2)&"."&"4."&LEFT($I14,1)&"."&LEFT($J14,1)&"."&LEFT($K14,1)) -> Заполните все столбцы | E14: =IFERROR("С "&(MID($D14,4,LEN($D14)))&" "&(RIGHT($H14,LEN($H14)-3))&","&(RIGHT($L14,LEN($L14)-2)),"Заполните все столбцы") -> Заполните все столбцы | F14: =IFERROR(VLOOKUP($I14,'1.1Назв. объ. эл. сетевого хоз.'!$H$2:$J$33,2,0)&" номинальным током "&VLOOKUP($J14,'1.1Назв. объ. эл. сетевого хоз.'!$H$2:$J$33,2,0)&" с количеством ячеек "&VLOOKUP($K14,'1.1Назв. объ. эл. сетевого хоз.'!$H$2:$J$33,2,0),"Заполните все столбцы") -> Заполните все столбцы | G14: Название объекта
B15: X | C15: =ROW($C15)-12 -> 4.3 | D15: =IF(OR($H15="",$I15="",$J15="",$K15="",$L15=""),"Заполните все столбцы",LEFT($H15,2)&"."&"4."&LEFT($I15,1)&"."&LEFT($J15,1)&"."&LEFT($K15,1)) -> Заполните все столбцы | E15: =IFERROR("С "&(MID($D15,4,LEN($D15)))&" "&(RIGHT($H15,LEN($H15)-3))&","&(RIGHT($L15,LEN($L15)-2)),"Заполните все столбцы") -> Заполните все столбцы | F15: =IFERROR(VLOOKUP($I15,'1.1Назв. объ. эл. сетевого хоз.'!$H$2:$J$33,2,0)&" номинальным током "&VLOOKUP($J15,'1.1Назв. объ. эл. сетевого хоз.'!$H$2:$J$33,2,0)&" с количеством ячеек "&VLOOKUP($K15,'1.1Назв. объ. эл. сетевого хоз.'!$H$2:$J$33,2,0),"Заполните все столбцы") -> Заполните все столбцы | G15: Название объекта
B16: X | C16: =ROW($C16)-12 -> 4.4 | D16: =IF(OR($H16="",$I16="",$J16="",$K16="",$L16=""),"Заполните все столбцы",LEFT($H16,2)&"."&"4."&LEFT($I16,1)&"."&LEFT($J16,1)&"."&LEFT($K16,1)) -> Заполните все столбцы | E16: =IFERROR("С "&(MID($D16,4,LEN($D16)))&" "&(RIGHT($H16,LEN($H16)-3))&","&(RIGHT($L16,LEN($L16)-2)),"Заполните все столбцы") -> Заполните все столбцы | F16: =IFERROR(VLOOKUP($I16,'1.1Назв. объ. эл. сетевого хоз.'!$H$2:$J$33,2,0)&" номинальным током "&VLOOKUP($J16,'1.1Назв. объ. эл. сетевого хоз.'!$H$2:$J$33,2,0)&" с количеством ячеек "&VLOOKUP($K16,'1.1Назв. объ. эл. сетевого хоз.'!$H$2:$J$33,2,0),"Заполните все столбцы") -> Заполните все столбцы | G16: Название объекта
B17: X | C17: =ROW($C17)-12 -> 4.5 | D17: =IF(OR($H17="",$I17="",$J17="",$K17="",$L17=""),"Заполните все столбцы",LEFT($H17,2)&"."&"4."&LEFT($I17,1)&"."&LEFT($J17,1)&"."&LEFT($K17,1)) -> Заполните все столбцы | E17: =IFERROR("С "&(MID($D17,4,LEN($D17)))&" "&(RIGHT($H17,LEN($H17)-3))&","&(RIGHT($L17,LEN($L17)-2)),"Заполните все столбцы") -> Заполните все столбцы | F17: =IFERROR(VLOOKUP($I17,'1.1Назв. объ. эл. сетевого хоз.'!$H$2:$J$33,2,0)&" номинальным током "&VLOOKUP($J17,'1.1Назв. объ. эл. сетевого хоз.'!$H$2:$J$33,2,0)&" с количеством ячеек "&VLOOKUP($K17,'1.1Назв. объ. эл. сетевого хоз.'!$H$2:$J$33,2,0),"Заполните все столбцы") -> Заполните все столбцы | G17: Название объекта
B18: TAG | G18: Добавить строки

Sheet Ставка 5. (ТП без РТП)
C2: Расходы на строительство введенных в эксплуатацию объектов электросетевого хозяйства для целей технологического присоединения и для целей реализации иных мероприятий инвестиционной программы территориальной сетевой организации
C6: ДЛЯ НАСЕЛЕННЫХ ПУНКТОВ ВСЕХ ТЕРРИТОРИЙ
C8: N п/п | D8: Технический код ставки | E8: Обозначение ставки | F8: Наименование ставки | G8: Объект электросетевого хозяйства | H8: Территория | I8: Количество трансформаторов | J8: Мощность трансформаторов | K8: Тип исполнения | L8: Напряжение | M8: Год ввода объекта | N8: Общая трансформаторная мощность, кВт | O8: Присоединенная максимальная мощность, кВт (указывается только до 670кВт, если больше не указывается) | P8: Расходы на строительство объекта, руб. (без НДС) | Q8: Наименование папки | R8: Источник финансирования
C9: 1 | D9: =C$9+1 -> 2 | E9: =D$9+1 -> 3 | F9: 4 | G9: 5 | H9: 6 | I9: 7 | J9: 8 | K9: 9 | L9: 10 | M9: 11 | N9: 12 | O9: 13 | P9: 14 | Q9: 15 | R9: 16
C10: 5. | G10: Трансформаторные подстанции (ТП), за исключением распределительных трансформаторных подстанций (РТП), с уровнем напряжения до 35 кВ
B11: X | C11: =ROW($C11)-12 -> -5.1 | D11: =IF(OR($H11="",$I11="",$J11="",$K11="",$L11=""),"Заполните все столбцы",LEFT($H11,2)&"."&"5."&LEFT($I11,1)&"."&LEFT($J11,2)&"."&LEFT($K11,1)) -> Заполните все столбцы | E11: =IFERROR("С "&(MID($D11,4,LEN($D11)))&" "&(RIGHT($H11,LEN($H11)-3))&","&(RIGHT($L11,LEN($L11)-2)),"Заполните все столбцы") -> Заполните все столбцы | F11: =IFERROR(VLOOKUP($I11,'1.1Назв. объ. эл. сетевого хоз.'!$K$2:$L$35,2,0)&" "&VLOOKUP($J11,'1.1Назв. объ. эл. сетевого хоз.'!$K$2:$L$26,2,0)&" "&VLOOKUP($K11,'1.1Назв. объ. эл. сетевого хоз.'!$K$2:$L$26,2,0),"Заполните все столбцы") -> Заполните все столбцы
B12: TAG | G12: Добавить строки
B13: X | C13: =ROW($C13)-12 -> 5.1 | D13: =IF(OR($H13="",$I13="",$J13="",$K13="",$L13=""),"Заполните все столбцы",LEFT($H13,2)&"."&"5."&LEFT($I13,1)&"."&LEFT($J13,2)&"."&LEFT($K13,1)) -> Заполните все столбцы | E13: =IFERROR("С "&(MID($D13,4,LEN($D13)))&" "&(RIGHT($H13,LEN($H13)-3))&","&(RIGHT($L13,LEN($L13)-2)),"Заполните все столбцы") -> Заполните все столбцы | F13: =IFERROR(VLOOKUP($I13,'1.1Назв. объ. эл. сетевого хоз.'!$K$2:$L$35,2,0)&" "&VLOOKUP($J13,'1.1Назв. объ. эл. сетевого хоз.'!$K$2:$L$26,2,0)&" "&VLOOKUP($K13,'1.1Назв. объ. эл. сетевого хоз.'!$K$2:$L$26,2,0),"Заполните все столбцы") -> Заполните все столбцы
B14: X | C14: =ROW($C14)-12 -> 5.2 | D14: =IF(OR($H14="",$I14="",$J14="",$K14="",$L14=""),"Заполните все столбцы",LEFT($H14,2)&"."&"5."&LEFT($I14,1)&"."&LEFT($J14,2)&"."&LEFT($K14,1)) -> Заполните все столбцы | E14: =IFERROR("С "&(MID($D14,4,LEN($D14)))&" "&(RIGHT($H14,LEN($H14)-3))&","&(RIGHT($L14,LEN($L14)-2)),"Заполните все столбцы") -> Заполните все столбцы | F14: =IFERROR(VLOOKUP($I14,'1.1Назв. объ. эл. сетевого хоз.'!$K$2:$L$35,2,0)&" "&VLOOKUP($J14,'1.1Назв. объ. эл. сетевого хоз.'!$K$2:$L$26,2,0)&" "&VLOOKUP($K14,'1.1Назв. объ. эл. сетевого хоз.'!$K$2:$L$26,2,0),"Заполните все столбцы") -> Заполните все столбцы
B15: X | C15: =ROW($C15)-12 -> 5.3 | D15: =IF(OR($H15="",$I15="",$J15="",$K15="",$L15=""),"Заполните все столбцы",LEFT($H15,2)&"."&"5."&LEFT($I15,1)&"."&LEFT($J15,2)&"."&LEFT($K15,1)) -> Заполните все столбцы | E15: =IFERROR("С "&(MID($D15,4,LEN($D15)))&" "&(RIGHT($H15,LEN($H15)-3))&","&(RIGHT($L15,LEN($L15)-2)),"Заполните все столбцы") -> Заполните все столбцы | F15: =IFERROR(VLOOKUP($I15,'1.1Назв. объ. эл. сетевого хоз.'!$K$2:$L$35,2,0)&" "&VLOOKUP($J15,'1.1Назв. объ. эл. сетевого хоз.'!$K$2:$L$26,2,0)&" "&VLOOKUP($K15,'1.1Назв. объ. эл. сетевого хоз.'!$K$2:$L$26,2,0),"Заполните все столбцы") -> Заполните все столбцы
B16: X | C16: =ROW($C16)-12 -> 5.4 | D16: =IF(OR($H16="",$I16="",$J16="",$K16="",$L16=""),"Заполните все столбцы",LEFT($H16,2)&"."&"5."&LEFT($I16,1)&"."&LEFT($J16,2)&"."&LEFT($K16,1)) -> Заполните все столбцы | E16: =IFERROR("С "&(MID($D16,4,LEN($D16)))&" "&(RIGHT($H16,LEN($H16)-3))&","&(RIGHT($L16,LEN($L16)-2)),"Заполните все столбцы") -> Заполните все столбцы | F16: =IFERROR(VLOOKUP($I16,'1.1Назв. объ. эл. сетевого хоз.'!$K$2:$L$35,2,0)&" "&VLOOKUP($J16,'1.1Назв. объ. эл. сетевого хоз.'!$K$2:$L$26,2,0)&" "&VLOOKUP($K16,'1.1Назв. объ. эл. сетевого хоз.'!$K$2:$L$26,2,0),"Заполните все столбцы") -> Заполните все столбцы
B17: X | C17: =ROW($C17)-12 -> 5.5 | D17: =IF(OR($H17="",$I17="",$J17="",$K17="",$L17=""),"Заполните все столбцы",LEFT($H17,2)&"."&"5."&LEFT($I17,1)&"."&LEFT($J17,2)&"."&LEFT($K17,1)) -> Заполните все столбцы | E17: =IFERROR("С "&(MID($D17,4,LEN($D17)))&" "&(RIGHT($H17,LEN($H17)-3))&","&(RIGHT($L17,LEN($L17)-2)),"Заполните все столбцы") -> Заполните все столбцы | F17: =IFERROR(VLOOKUP($I17,'1.1Назв. объ. эл. сетевого хоз.'!$K$2:$L$35,2,0)&" "&VLOOKUP($J17,'1.1Назв. объ. эл. сетевого хоз.'!$K$2:$L$26,2,0)&" "&VLOOKUP($K17,'1.1Назв. объ. эл. сетевого хоз.'!$K$2:$L$26,2,0),"Заполните все столбцы") -> Заполните все столбцы
B18: TAG | G18: Добавить строки

Sheet Ставка 6. (РТП)
C2: Расходы на строительство введенных в эксплуатацию объектов электросетевого хозяйства для целей технологического присоединения и для целей реализации иных мероприятий инвестиционной программы территориальной сетевой организации
C6: ДЛЯ НАСЕЛЕННЫХ ПУНКТОВ ВСЕХ ТЕРРИТОРИЙ
C8: N п/п | D8: Технический код ставки | E8: Обозначение ставки | F8: Наименование ставки | G8: Объект электросетевого хозяйства | H8: Территория | I8: Количество трансформаторов | J8: Мощность трансформаторов | K8: Тип исполнения | L8: Напряжение | M8: Год ввода объекта | N8: Общая трансформаторная мощность, кВт | O8: Присоединенная максимальная мощность, кВт (указывается только до 670кВт, если больше не указывается) | P8: Расходы на строительство объекта, руб. (без НДС) | Q8: Наименование папки | R8: Источник финансирования
C9: 1 | D9: =C$9+1 -> 2 | E9: =D$9+1 -> 3 | F9: 4 | G9: 5 | H9: 6 | I9: 7 | J9: 8 | K9: =J$9+1 -> 9 | L9: =K$9+1 -> 10 | M9: 11 | N9: 12 | O9: 13 | P9: 14 | Q9: 15 | R9: 16
C10: 6. | G10: Распределительные трансформаторные подстанции (РТП) с уровнем напряжения до 35 кВ
B11: X | C11: =ROW($C11)-12 -> -6.1 | D11: =IF(OR($H11="",$I11="",$J11="",$K11="",$L11=""),"Заполните все столбцы",LEFT($H11,2)&"."&"6."&LEFT($I11,1)&"."&LEFT($J11,2)&"."&LEFT($K11,1)&".") -> Заполните все столбцы | E11: =IFERROR("С "&(MID($D11,4,LEN($D11)))&" "&(RIGHT($H11,LEN($H11)-3))&","&(RIGHT($L11,LEN($L11)-2)),"Заполните все столбцы") -> Заполните все столбцы | F11: =IFERROR(VLOOKUP($I11,'1.1Назв. объ. эл. сетевого хоз.'!$N$2:$O$36,2,0)&" мощностью"&VLOOKUP($J11,'1.1Назв. объ. эл. сетевого хоз.'!$N$2:$O$27,2,0)&VLOOKUP($K11,'1.1Назв. объ. эл. сетевого хоз.'!$N$2:$O$27,2,0),"Заполните все столбцы") -> Заполните все столбцы | G11: Название объекта
B12: TAG | G12: Добавить строки
B13: X | C13: =ROW($C13)-12 -> 6.1 | D13: =IF(OR($H13="",$I13="",$J13="",$K13="",$L13=""),"Заполните все столбцы",LEFT($H13,2)&"."&"6."&LEFT($I13,1)&"."&LEFT($J13,2)&"."&LEFT($K13,1)&".") -> Заполните все столбцы | E13: =IFERROR("С "&(MID($D13,4,LEN($D13)))&" "&(RIGHT($H13,LEN($H13)-3))&","&(RIGHT($L13,LEN($L13)-2)),"Заполните все столбцы") -> Заполните все столбцы | F13: =IFERROR(VLOOKUP($I13,'1.1Назв. объ. эл. сетевого хоз.'!$N$2:$O$36,2,0)&" мощностью"&VLOOKUP($J13,'1.1Назв. объ. эл. сетевого хоз.'!$N$2:$O$27,2,0)&VLOOKUP($K13,'1.1Назв. объ. эл. сетевого хоз.'!$N$2:$O$27,2,0),"Заполните все столбцы") -> Заполните все столбцы | G13: Название объекта
B14: X | C14: =ROW($C14)-12 -> 6.2 | D14: =IF(OR($H14="",$I14="",$J14="",$K14="",$L14=""),"Заполните все столбцы",LEFT($H14,2)&"."&"6."&LEFT($I14,1)&"."&LEFT($J14,2)&"."&LEFT($K14,1)&".") -> Заполните все столбцы | E14: =IFERROR("С "&(MID($D14,4,LEN($D14)))&" "&(RIGHT($H14,LEN($H14)-3))&","&(RIGHT($L14,LEN($L14)-2)),"Заполните все столбцы") -> Заполните все столбцы | F14: =IFERROR(VLOOKUP($I14,'1.1Назв. объ. эл. сетевого хоз.'!$N$2:$O$36,2,0)&" мощностью"&VLOOKUP($J14,'1.1Назв. объ. эл. сетевого хоз.'!$N$2:$O$27,2,0)&VLOOKUP($K14,'1.1Назв. объ. эл. сетевого хоз.'!$N$2:$O$27,2,0),"Заполните все столбцы") -> Заполните все столбцы | G14: Название объекта
B15: X | C15: =ROW($C15)-12 -> 6.3 | D15: =IF(OR($H15="",$I15="",$J15="",$K15="",$L15=""),"Заполните все столбцы",LEFT($H15,2)&"."&"6."&LEFT($I15,1)&"."&LEFT($J15,2)&"."&LEFT($K15,1)&".") -> Заполните все столбцы | E15: =IFERROR("С "&(MID($D15,4,LEN($D15)))&" "&(RIGHT($H15,LEN($H15)-3))&","&(RIGHT($L15,LEN($L15)-2)),"Заполните все столбцы") -> Заполните все столбцы | F15: =IFERROR(VLOOKUP($I15,'1.1Назв. объ. эл. сетевого хоз.'!$N$2:$O$36,2,0)&" мощностью"&VLOOKUP($J15,'1.1Назв. объ. эл. сетевого хоз.'!$N$2:$O$27,2,0)&VLOOKUP($K15,'1.1Назв. объ. эл. сетевого хоз.'!$N$2:$O$27,2,0),"Заполните все столбцы") -> Заполните все столбцы | G15: Название объекта
B16: X | C16: =ROW($C16)-12 -> 6.4 | D16: =IF(OR($H16="",$I16="",$J16="",$K16="",$L16=""),"Заполните все столбцы",LEFT($H16,2)&"."&"6."&LEFT($I16,1)&"."&LEFT($J16,2)&"."&LEFT($K16,1)&".") -> Заполните все столбцы | E16: =IFERROR("С "&(MID($D16,4,LEN($D16)))&" "&(RIGHT($H16,LEN($H16)-3))&","&(RIGHT($L16,LEN($L16)-2)),"Заполните все столбцы") -> Заполните все столбцы | F16: =IFERROR(VLOOKUP($I16,'1.1Назв. объ. эл. сетевого хоз.'!$N$2:$O$36,2,0)&" мощностью"&VLOOKUP($J16,'1.1Назв. объ. эл. сетевого хоз.'!$N$2:$O$27,2,0)&VLOOKUP($K16,'1.1Назв. объ. эл. сетевого хоз.'!$N$2:$O$27,2,0),"Заполните все столбцы") -> Заполните все столбцы | G16: Название объекта
B17: X | C17: =ROW($C17)-12 -> 6.5 | D17: =IF(OR($H17="",$I17="",$J17="",$K17="",$L17=""),"Заполните все столбцы",LEFT($H17,2)&"."&"6."&LEFT($I17,1)&"."&LEFT($J17,2)&"."&LEFT($K17,1)&".") -> Заполните все столбцы | E17: =IFERROR("С "&(MID($D17,4,LEN($D17)))&" "&(RIGHT($H17,LEN($H17)-3))&","&(RIGHT($L17,LEN($L17)-2)),"Заполните все столбцы") -> Заполните все столбцы | F17: =IFERROR(VLOOKUP($I17,'1.1Назв. объ. эл. сетевого хоз.'!$N$2:$O$36,2,0)&" мощностью"&VLOOKUP($J17,'1.1Назв. объ. эл. сетевого хоз.'!$N$2:$O$27,2,0)&VLOOKUP($K17,'1.1Назв. объ. эл. сетевого хоз.'!$N$2:$O$27,2,0),"Заполните все столбцы") -> Заполните все столбцы | G17: Название объекта
B18: TAG | G18: Добавить строки

Sheet Ставка 7. (ТП>35)
C2: Расходы на строительство введенных в эксплуатацию объектов электросетевого хозяйства для целей технологического присоединения и для целей реализации иных мероприятий инвестиционной программы территориальной сетевой организации
C6: ДЛЯ НАСЕЛЕННЫХ ПУНКТОВ ВСЕХ ТЕРРИТОРИЙ
C8: N п/п | D8: Технический код ставки | E8: Обозначение ставки | F8: Наименование ставки | G8: Объект электросетевого хозяйства | H8: Территория | I8: Количество трансформаторов | J8: Мощность трансформаторов | K8: Тип исполнения | L8: Напряжение | M8: Год ввода объекта | N8: Общая трансформаторная мощность, кВт | O8: Присоединенная максимальная мощность, кВт (указывается только до 670кВт, если больше не указывается) | P8: Расходы на строительство объекта, руб. (без НДС) | Q8: Наименование папки | R8: Источник финансирования
C9: 1 | D9: =C$9+1 -> 2 | E9: =D$9+1 -> 3 | F9: 4 | G9: 5 | H9: 6 | I9: 7 | J9: 8 | K9: =J$9+1 -> 9 | L9: =K$9+1 -> 10 | M9: 11 | N9: 12 | O9: 13 | P9: 14 | Q9: 15 | R9: 16
C10: 7. | I10: Подстанции уровнем напряжения 35 кВ и выше
B11: X | C11: =ROW($C11)-12 -> -7.1 | D11: =IF(OR($H11="",$I11="",$J11="",$K11="",$L11=""),"Заполните все столбцы",LEFT($H11,2)&"."&"7."&LEFT($I11,1)&"."&LEFT($J11,2)&"."&LEFT($K11,1)) -> Заполните все столбцы | E11: =IFERROR("С "&(MID($D11,4,LEN($D11)))&" "&(RIGHT($H11,LEN($H11)-3))&","&(RIGHT($L11,LEN($L11)-2)),"Заполните все столбцы") -> Заполните все столбцы | F11: =IFERROR(VLOOKUP($I11,'1.1Назв. объ. эл. сетевого хоз.'!$Q$2:$R$33,2,0)&" мощностью "&VLOOKUP($J11,'1.1Назв. объ. эл. сетевого хоз.'!$Q$2:$R$33,2,0)&VLOOKUP($K11,'1.1Назв. объ. эл. сетевого хоз.'!$Q$2:$R$33,2,0),"Заполните все столбцы") -> Заполните все столбцы | G11: Название объекта
B12: TAG | G12: Добавить строки
B13: X | C13: =ROW($C13)-12 -> 7.1 | D13: =IF(OR($H13="",$I13="",$J13="",$K13="",$L13=""),"Заполните все столбцы",LEFT($H13,2)&"."&"7."&LEFT($I13,1)&"."&LEFT($J13,2)&"."&LEFT($K13,1)) -> Заполните все столбцы | E13: =IFERROR("С "&(MID($D13,4,LEN($D13)))&" "&(RIGHT($H13,LEN($H13)-3))&","&(RIGHT($L13,LEN($L13)-2)),"Заполните все столбцы") -> Заполните все столбцы | F13: =IFERROR(VLOOKUP($I13,'1.1Назв. объ. эл. сетевого хоз.'!$Q$2:$R$33,2,0)&" мощностью "&VLOOKUP($J13,'1.1Назв. объ. эл. сетевого хоз.'!$Q$2:$R$33,2,0)&VLOOKUP($K13,'1.1Назв. объ. эл. сетевого хоз.'!$Q$2:$R$33,2,0),"Заполните все столбцы") -> Заполните все столбцы | G13: Название объекта
B14: X | C14: =ROW($C14)-12 -> 7.2 | D14: =IF(OR($H14="",$I14="",$J14="",$K14="",$L14=""),"Заполните все столбцы",LEFT($H14,2)&"."&"7."&LEFT($I14,1)&"."&LEFT($J14,2)&"."&LEFT($K14,1)) -> Заполните все столбцы | E14: =IFERROR("С "&(MID($D14,4,LEN($D14)))&" "&(RIGHT($H14,LEN($H14)-3))&","&(RIGHT($L14,LEN($L14)-2)),"Заполните все столбцы") -> Заполните все столбцы | F14: =IFERROR(VLOOKUP($I14,'1.1Назв. объ. эл. сетевого хоз.'!$Q$2:$R$33,2,0)&" мощностью "&VLOOKUP($J14,'1.1Назв. объ. эл. сетевого хоз.'!$Q$2:$R$33,2,0)&VLOOKUP($K14,'1.1Назв. объ. эл. сетевого хоз.'!$Q$2:$R$33,2,0),"Заполните все столбцы") -> Заполните все столбцы | G14: Название объекта
B15: X | C15: =ROW($C15)-12 -> 7.3 | D15: =IF(OR($H15="",$I15="",$J15="",$K15="",$L15=""),"Заполните все столбцы",LEFT($H15,2)&"."&"7."&LEFT($I15,1)&"."&LEFT($J15,2)&"."&LEFT($K15,1)) -> Заполните все столбцы | E15: =IFERROR("С "&(MID($D15,4,LEN($D15)))&" "&(RIGHT($H15,LEN($H15)-3))&","&(RIGHT($L15,LEN($L15)-2)),"Заполните все столбцы") -> Заполните все столбцы | F15: =IFERROR(VLOOKUP($I15,'1.1Назв. объ. эл. сетевого хоз.'!$Q$2:$R$33,2,0)&" мощностью "&VLOOKUP($J15,'1.1Назв. объ. эл. сетевого хоз.'!$Q$2:$R$33,2,0)&VLOOKUP($K15,'1.1Назв. объ. эл. сетевого хоз.'!$Q$2:$R$33,2,0),"Заполните все столбцы") -> Заполните все столбцы | G15: Название объекта
B16: X | C16: =ROW($C16)-12 -> 7.4 | D16: =IF(OR($H16="",$I16="",$J16="",$K16="",$L16=""),"Заполните все столбцы",LEFT($H16,2)&"."&"7."&LEFT($I16,1)&"."&LEFT($J16,2)&"."&LEFT($K16,1)) -> Заполните все столбцы | E16: =IFERROR("С "&(MID($D16,4,LEN($D16)))&" "&(RIGHT($H16,LEN($H16)-3))&","&(RIGHT($L16,LEN($L16)-2)),"Заполните все столбцы") -> Заполните все столбцы | F16: =IFERROR(VLOOKUP($I16,'1.1Назв. объ. эл. сетевого хоз.'!$Q$2:$R$33,2,0)&" мощностью "&VLOOKUP($J16,'1.1Назв. объ. эл. сетевого хоз.'!$Q$2:$R$33,2,0)&VLOOKUP($K16,'1.1Назв. объ. эл. сетевого хоз.'!$Q$2:$R$33,2,0),"Заполните все столбцы") -> Заполните все столбцы | G16: Название объекта
B17: X | C17: =ROW($C17)-12 -> 7.5 | D17: =IF(OR($H17="",$I17="",$J17="",$K17="",$L17=""),"Заполните все столбцы",LEFT($H17,2)&"."&"7."&LEFT($I17,1)&"."&LEFT($J17,2)&"."&LEFT($K17,1)) -> Заполните все столбцы | E17: =IFERROR("С "&(MID($D17,4,LEN($D17)))&" "&(RIGHT($H17,LEN($H17)-3))&","&(RIGHT($L17,LEN($L17)-2)),"Заполните все столбцы") -> Заполните все столбцы | F17: =IFERROR(VLOOKUP($I17,'1.1Назв. объ. эл. сетевого хоз.'!$Q$2:$R$33,2,0)&" мощностью "&VLOOKUP($J17,'1.1Назв. объ. эл. сетевого хоз.'!$Q$2:$R$33,2,0)&VLOOKUP($K17,'1.1Назв. объ. эл. сетевого хоз.'!$Q$2:$R$33,2,0),"Заполните все столбцы") -> Заполните все столбцы | G17: Название объекта
B18: TAG | G18: Добавить строки

Sheet Ставка 8. (ПУ)
C2: Расходы на строительство введенных в эксплуатацию объектов электросетевого хозяйства для целей технологического присоединения и для целей реализации иных мероприятий инвестиционной программы территориальной сетевой организации
C6: ДЛЯ НАСЕЛЕННЫХ ПУНКТОВ ВСЕХ ТЕРРИТОРИЙ
C8: N п/п | D8: Технический код ставки | E8: Обозначение ставки | F8: Наименование ставки | G8: Объект электросетевого хозяйства | H8: Территория | I8: Количество фаз | J8: Способ подключения | K8: Напряжение | L8: Год ввода объекта | M8: Количество точек учета, шт. | N8: Присоединенная максимальная мощность, кВт (указывается только до 670кВт, если больше не указывается) | O8: Общие расходы на обеспечение средствами коммерческого учета электрической энергии (мощности), руб. (без НДС) | P8: Расходы на обеспечение средствами коммерческого учета электрической энергии (мощности), руб./шт. | Q8: Наименование папки | R8: Источник финансирования
C9: 1 | D9: =C$9+1 -> 2 | E9: =D$9+1 -> 3 | F9: 4 | G9: 5 | H9: 6 | I9: 7 | J9: 8 | K9: 9 | L9: 10 | M9: 11 | N9: 12 | O9: 13 | P9: 14 | Q9: 15 | R9: 16
C10: 8. | G10: Обеспечение средствами коммерческого учета электрической энергии (мощности)
B11: X | C11: =ROW($C11)-12 -> -8.1 | D11: =IF(OR($H11="",$I11="",$J11="",$K11=""),"Заполните все столбцы",LEFT($H11,2)&"."&"8."&LEFT($I11,1)&"."&LEFT($J11,1)) -> Заполните все столбцы | E11: =IFERROR("С "&(MID($D11,4,LEN($D11)))&" "&(RIGHT($H11,LEN($H11)-3))&","&(RIGHT($K11,LEN($K11)-2)),"Заполните все столбцы") -> Заполните все столбцы | F11: =IFERROR("средства коммерческого учета электрической энергии (мощности) "&VLOOKUP($I11,'1.1Назв. объ. эл. сетевого хоз.'!$T$2:$U$33,2,0)&" "&VLOOKUP($J11,'1.1Назв. объ. эл. сетевого хоз.'!$T$2:$U$33,2,0),"Заполните все столбцы") -> Заполните все столбцы | G11: Название объекта и(или) адрес | P11: =IF(AND(O11<>0,M11<>0),O11/M11,0) -> 0.00 | R11: Инвестиционная программа
B12: TAG | G12: Добавить строки
B13: X | C13: =ROW($C13)-12 -> 8.1 | D13: =IF(OR($H13="",$I13="",$J13="",$K13=""),"Заполните все столбцы",LEFT($H13,2)&"."&"8."&LEFT($I13,1)&"."&LEFT($J13,1)) -> Заполните все столбцы | E13: =IFERROR("С "&(MID($D13,4,LEN($D13)))&" "&(RIGHT($H13,LEN($H13)-3))&","&(RIGHT($K13,LEN($K13)-2)),"Заполните все столбцы") -> Заполните все столбцы | F13: =IFERROR("средства коммерческого учета электрической энергии (мощности) "&VLOOKUP($I13,'1.1Назв. объ. эл. сетевого хоз.'!$T$2:$U$33,2,0)&" "&VLOOKUP($J13,'1.1Назв. объ. эл. сетевого хоз.'!$T$2:$U$33,2,0),"Заполните все столбцы") -> Заполните все столбцы | G13: Название объекта и(или) адрес | P13: =IF(AND(O13<>0,M13<>0),O13/M13,0) -> 0.00 | R13: Инвестиционная программа
B14: X | C14: =ROW($C14)-12 -> 8.2 | D14: =IF(OR($H14="",$I14="",$J14="",$K14=""),"Заполните все столбцы",LEFT($H14,2)&"."&"8."&LEFT($I14,1)&"."&LEFT($J14,1)) -> Заполните все столбцы | E14: =IFERROR("С "&(MID($D14,4,LEN($D14)))&" "&(RIGHT($H14,LEN($H14)-3))&","&(RIGHT($K14,LEN($K14)-2)),"Заполните все столбцы") -> Заполните все столбцы | F14: =IFERROR("средства коммерческого учета электрической энергии (мощности) "&VLOOKUP($I14,'1.1Назв. объ. эл. сетевого хоз.'!$T$2:$U$33,2,0)&" "&VLOOKUP($J14,'1.1Назв. объ. эл. сетевого хоз.'!$T$2:$U$33,2,0),"Заполните все столбцы") -> Заполните все столбцы | G14: Название объекта и(или) адрес | P14: =IF(AND(O14<>0,M14<>0),O14/M14,0) -> 0.00 | R14: Инвестиционная программа
B15: X | C15: =ROW($C15)-12 -> 8.3 | D15: =IF(OR($H15="",$I15="",$J15="",$K15=""),"Заполните все столбцы",LEFT($H15,2)&"."&"8."&LEFT($I15,1)&"."&LEFT($J15,1)) -> Заполните все столбцы | E15: =IFERROR("С "&(MID($D15,4,LEN($D15)))&" "&(RIGHT($H15,LEN($H15)-3))&","&(RIGHT($K15,LEN($K15)-2)),"Заполните все столбцы") -> Заполните все столбцы | F15: =IFERROR("средства коммерческого учета электрической энергии (мощности) "&VLOOKUP($I15,'1.1Назв. объ. эл. сетевого хоз.'!$T$2:$U$33,2,0)&" "&VLOOKUP($J15,'1.1Назв. объ. эл. сетевого хоз.'!$T$2:$U$33,2,0),"Заполните все столбцы") -> Заполните все столбцы | G15: Название объекта и(или) адрес | P15: =IF(AND(O15<>0,M15<>0),O15/M15,0) -> 0.00 | R15: Инвестиционная программа
B16: X | C16: =ROW($C16)-12 -> 8.4 | D16: =IF(OR($H16="",$I16="",$J16="",$K16=""),"Заполните все столбцы",LEFT($H16,2)&"."&"8."&LEFT($I16,1)&"."&LEFT($J16,1)) -> Заполните все столбцы | E16: =IFERROR("С "&(MID($D16,4,LEN($D16)))&" "&(RIGHT($H16,LEN($H16)-3))&","&(RIGHT($K16,LEN($K16)-2)),"Заполните все столбцы") -> Заполните все столбцы | F16: =IFERROR("средства коммерческого учета электрической энергии (мощности) "&VLOOKUP($I16,'1.1Назв. объ. эл. сетевого хоз.'!$T$2:$U$33,2,0)&" "&VLOOKUP($J16,'1.1Назв. объ. эл. сетевого хоз.'!$T$2:$U$33,2,0),"Заполните все столбцы") -> Заполните все столбцы | G16: Название объекта и(или) адрес | P16: =IF(AND(O16<>0,M16<>0),O16/M16,0) -> 0.00 | R16: Инвестиционная программа
B17: X | C17: =ROW($C17)-12 -> 8.5 | D17: =IF(OR($H17="",$I17="",$J17="",$K17=""),"Заполните все столбцы",LEFT($H17,2)&"."&"8."&LEFT($I17,1)&"."&LEFT($J17,1)) -> Заполните все столбцы | E17: =IFERROR("С "&(MID($D17,4,LEN($D17)))&" "&(RIGHT($H17,LEN($H17)-3))&","&(RIGHT($K17,LEN($K17)-2)),"Заполните все столбцы") -> Заполните все столбцы | F17: =IFERROR("средства коммерческого учета электрической энергии (мощности) "&VLOOKUP($I17,'1.1Назв. объ. эл. сетевого хоз.'!$T$2:$U$33,2,0)&" "&VLOOKUP($J17,'1.1Назв. объ. эл. сетевого хоз.'!$T$2:$U$33,2,0),"Заполните все столбцы") -> Заполните все столбцы | G17: Название объекта и(или) адрес | P17: =IF(AND(O17<>0,M17<>0),O17/M17,0) -> 0.00 | R17: Инвестиционная программа
B18: TAG | G18: Добавить строки

Sheet Названия ТСО+Ист. фин. тех.лист (hidden)
A1: Наименование сетевой организации, к которой непосредственно присоединен потребитель | B1: Источник финансирования
A2: Филиал ОАО "РЖД" Трансэнерго Свердловская дирекция по энергообеспечению (по сетям Ишимской, Егоршинской, Серовской, Тюменской дистанций электроснабжения) | B2: Инвестиционная программа
A3: АО "Сибирско-Уральская энергетическая компания" | B3: Технологическое присоединение
A4: Филиал "Уральский" АО "Оборонэнерго"
A5: ООО "ДСК-Энерго"
A6: ООО "РемЭнергоСтройСервис"
A7: ООО "Тобольскпромэнергосеть"
A8: ООО "Транзит-Электро-Тюмень"
A9: ООО "Тюменская электросетевая компания"
A10: ООО "Элтранс"
A11: ООО "Агентство Интеллект-Сервис"
A12: ООО "Альтера"
A13: ООО Сетевая компания "Восток"
A14: ООО "Дорстрой"
A15: ООО "Региональная энергетическая компания"
A16: АО "Россети Тюмень"
A17: ООО "ТюменьСеть"
A18: ООО "Элеконт"
A19: АО "Городские электрические сети" г.Нижневартовск
A20: АО "Варьеганэнергонефть"
A21: ООО "МегионЭнергоНефть"
A22: ООО "Сургутские городские электрические сети"
A23: АО "Югорская территориальная энергетическая компания - Региональные сети"
A24: ООО "ЭЛЕК"
A25: АО "Югорская региональная электросетевая компания"
A26: АО "Аэропорт Сургут"
A27: Филиал ОАО "РЖД" Трансэнерго Свердловская дирекция по энергообеспечению (по сетям Сургутской дистанции электроснабжения)
A28: ООО "Газпром трансгаз Сургут"
A29: ПАО "Сургутнефтегаз"
A30: АО «ННК - Нижневартовское нефтегазодобывающее предприятие» (АО «ННК - ННП»)
A31: МУП "Сургутские районные электрические сети" муниципального образования Сургутский район
A32: АО "Черногорэнерго"
A33: ООО "Луч-Электро"
A34: ООО "РН-Юганскнефтегаз"
A35: ООО "Газпром энерго"
A36: ООО "Энергонефть Томск"
A37: ООО "Газпромнефть-Хантос"
A38: ООО "Ханты-Мансийские городские электрические сети"
A39: АО "Вынгапуровский тепловодоканал"
A40: АО "Уренгойгорэлектросеть"
A41: АО "Ямальская железнодорожная компания"
A42: ООО "Газпромнефть Энергосистемы"
A43: АО "Энерго-Газ-Ноябрьск"
A44: АО "НордЭнерджиСистемс"
A45: МУП муниципального округа Надымский район Ямало-Ненецкого автономного округа "Надымские городские электрические сети"
A46: ООО "СеверСетьРазвитие"
A47: АО "Распределительная сетевая компания Ямала"
A48: АО "Губкинские городские электрические сети"

Sheet Teh_Sheet (hidden)
C2: 2. воздушные линии | M2: 3. кабельные линии | U2: 4. пункты секционирования (реклоузеры, распределительные пункты, переключательные пункты) | AA2: 5. трансформаторные подстанции (ТП), за исключением распределительных трансформаторных подстанций (РТП), с уровнем напряжения до 35 кВ | AG2: 6. распределительные трансформаторные подстанции (РТП) с уровнем напряжения до 35 кВ | AM2: 7. подстанции уровнем напряжения 35 кВ и выше | AS2: 8. обеспечение средствами коммерческого учета электрической энергии (мощности)
A3: Ст | C3: территория | D3: опоры | E3: изоляция | F3: материал | G3: сечение | H3: количество цепей | I3: напряжение | J3: напряжение 2) | K3: напряжение 2.) | M3: территория | N3: способ прокладки | O3: вид жилы | P3: изоляция | Q3: сечение | R3: количество кабелей | S3: напряжение | U3: территория | V3: техническое исполнение | W3: номинальный ток | X3: Количество ячеек | Y3: напряжение | AA3: Территория | AB3: Количество трансформаторов | AC3: Мощность трансформаторов | AD3: Тип исполнения | AE3: Напряжение | AG3: Территория | AH3: Количество трансформаторов | AI3: Мощность трансформаторов | AJ3: Тип исполнения | AK3: Напряжение | AM3: территория | AN3: количество трансформаторов | AO3: Мощность трансформаторов | AP3: Тип исполнения | AQ3: Напряжение | AS3: территория | AT3: Количество фаз | AU3: Способ подключения | AV3: Напряжение
A4: 1) | C4: I ) Город | D4: 1) Деревянные | E4: 1) Изолированый | F4: 1) Медный | G4: 1) до 50 квадратных мм включительно | H4: 1) Одноцепные | I4: 1) 0,4 кВ и ниже | J4: 1) 0,4 кВ и ниже | K4: 3) 27,5 - 60 кВ | M4: I ) Город | N4: 1) траншея | O4: 1) одножильный | P4: 1) резиновая или пластмассовая | Q4: 1) до 50 квадратных мм включительно | R4: 1) один | S4: 1) 0,4 кВ и ниже | U4: I ) Город | V4: 1) реклоузер | W4: 1) до 100 А | X4: 1) до 5 включительно | Y4: 1) 0,4 кВ и ниже | AA4: I ) Город | AB4: 1) один | AC4: 1.) до 25 кВА включительно | AD4: 1) столбового/мачтового | AE4: 1) 6/0,4 кВ | AG4: I ) Город | AH4: 1) один | AI4: 1.) до 25 кВА включительно | AJ4: 1) открытого | AK4: 1) 6(10)/0,4 кВ | AM4: I ) Город | AN4: 1) один | AO4: 1.) до 6,3 МВА включительно | AP4: 1) открытого | AQ4: 1) 35/6(10) кВ | AS4: I ) Город | AT4: 1) однофазные | AU4: 1) прямого включения | AV4: 1) 0,4 кВ и ниже
A5: 2) | C5: II) Не город | D5: 2) Металлические | E5: 2) Неизолированный | F5: 2) Стальной | G5: 2) от 50 до 100 квадратных мм включительно | H5: 2) Двухцепные | I5: 2) 1 - 20 кВ | J5: 2) 1 - 20 кВ | K5: 4) 110 кВ и выше | M5: II) Не город | N5: 2) блоки | O5: 2) многожильный | P5: 2) бумажная | Q5: 2) от 50 до 100 квадратных мм включительно | R5: 2) два | S5: 2) 1 - 10 кВ | U5: II) Не город | V5: 2) линейные разъединители | W5: 2) от 100 до 250 А включительно | X5: 2) от 5 до 10 включительно | Y5: 2) 1 - 20 кВ | AA5: II) Не город | AB5: 2) два | AC5: 2.) от 25 до 100 кВА включительно | AD5: 2) шкафного или киоскового | AE5: 2) 10/0,4 кВ | AG5: II) Не город | AH5: 1) два | AI5: 2.) от 25 до 100 кВА включительно | AJ5: 2) закрытого | AK5: 2) 20/0,4 кВ | AM5: II) Не город | AN5: 2) два | AO5: 2.) от 6,3 МВА до 10 МВА включительно | AP5: 2) закрытого | AQ5: 2) 35/0,4 кВ | AS5: II) Не город | AT5: 2) трехфазные | AU5: 2) полукосвенного включения | AV5: 2) 1 - 20 кВ
A6: 3) | D6: 2.1) Металлические, за исключением многогранных | F6: 3) Сталеалюминиевый | G6: 3) от 100 до 200 квадратных мм включительно | I6: 3) 27,5 - 60 кВ | N6: 3) каналы | Q6: 3) от 100 до 200 квадратных мм включительно | R6: 3) три | S6: 3) 15 - 20 кВ | V6: 3) выключатели нагрузки | W6: 3) от 250 до 500 А включительно | X6: 3) от 10 до 15 включительно | Y6: 3) 35 кВ | AC6: 3.) от 100 до 250 кВА включительно | AD6: 3) блочного | AE6: 3) 20/0,4 кВ | AI6: 3.) от 100 до 250 кВА включительно | AO6: 3.) от 10 МВА до 16 МВА включительно | AQ6: 3) 110/35 кВ | AU6: 3) косвенного включения | AV6: 3) 35 кВ
A7: 4) | D7: 2.2) Металлические многогранные | F7: 4) Алюминиевый | G7: 4) от 200 до 500 квадратных мм включительно | I7: 4) 110 кВ и выше | N7: 4) туннели и коллекторы | Q7: 4) от 200 до 250 квадратных мм включительно | R7: 4) четыре | S7: 4) 27,5 - 60 кВ | V7: 4) распределительные пункты, за исключением КРН, КРУН | W7: 4) от 500 до 1000 А включительно | X7: 4) свыше 15 | Y7: 4) 110 кВ и выше | AC7: 4.) от 250 до 400 кВА включительно | AD7: 4) встроенного | AE7: 4) 6/10 (10/6) кВ | AI7: 4.) от 250 до 400 кВА включительно | AO7: 4.) от 16 МВА до 25 МВА включительно | AQ7: 4) 110/6(10) кВ | AV7: 4) 110 кВ и выше
A8: 5) | D8: 3) Железобетонные | G8: 5) от 500 до 800 квадратных мм включительно | N8: 5) галереи и эстакады | Q8: 5) от 250 до 300 квадратных мм включительно | R8: 5) более четырех | S8: 5) 110 кВ и выше | V8: 5) КРН, КРУН | W8: 5) свыше 1000 А | AC8: 5.) от 400 до 630 кВА включительно | AE8: 5) 10/20 (20/10) кВ | AI8: 5.) от 400 до 630 кВА включительно | AO8: 5.) от 25 МВА до 32 МВА включительно | AQ8: 5) 110/35/6(10) кВ
A9: 6) | G9: 6) свыше 800 квадратных мм | N9: 6) метод горизонтального наклонного бурения | Q9: 6) от 300 до 400 квадратных мм включительно | V9: 6) переключательные пункты | AC9: 6.) от 630 кВА до 1000 кВА | AE9: 6) 6/20 (20/6) кВ | AI9: 6.) от 630 кВА до 1000 кВА | AO9: 6.) от 32 МВА до 40 МВА включительно
A10: 7) | N10: 7) подводная прокладка | Q10: 7) от 400 до 500 квадратных мм включительно | AC10: 7.) от 1000 кВА до 1250 кВА | AI10: 7.) от 1000 кВА до 1250 кВА | AO10: 7.) от 40 МВА до 63 МВА включительно
A11: 8) | Q11: 8) от 500 до 800 квадратных мм включительно | AC11: 8.) от 1250 кВА до 1600 кВА включительно | AI11: 8.) от 1250 кВА до 1600 кВА включительно | AO11: 8.) от 63 МВА до 80 МВА включительно
A12: 9) | Q12: 9) свыше 800 квадратных мм | AC12: 9.) от 1600 кВА до 2000 кВА включительно | AI12: 9.) от 1600 кВА до 2000 кВА включительно | AO12: 9.) от 80 МВА до 100 МВА включительно
A13: 10) | AC13: 10) от 2000 кВА до 2500 кВА включительно | AI13: 10) от 2000 кВА до 2500 кВА включительно | AO13: 10) свыше 100 МВА
A14: 11) | AC14: 11) от 2500 кВА до 3150 кВА включительно | AI14: 11) от 2500 кВА до 3150 кВА включительно
A15: 12) | AC15: 12) от 3150 кВА до 4000 кВА включительно | AI15: 12) свыше 3150 кВА
A16: 13) | AC16: 13) свыше 4000 кВА

Sheet 1.1Назв. объ. эл. сетевого хоз. (hidden)
A1: 2. ВЛ | D1: 3. КЛ | H1: 4. Реклоузеры, линейные разъединители, выключатели нагрузки + распределительные пункты (РП), за исключением комплектных распределительных устройств наружной установки (КРН, КРУН), комплектные распределительные устройства наружной установки (КРН, КРУН) , переключательные пункты | K1: 5. трансформаторные подстанции (ТП), за исключением распределительных трансформаторных подстанций (РТП), с уровнем напряжения до 35 кВ | N1: 6. распределительные трансформаторные подстанции (РТП) с уровнем напряжения до 35 кВ | Q1: 7. подстанции уровнем напряжения 35 кВ и выше | T1: 8. обеспечение средствами коммерческого учета электрической энергии (мощности)
A2: 1) Деревянные | B2: деревянных опорах | D2: 1) траншея | E2: в траншеях | F2: в траншее | H2: 1) реклоузер | I2: реклоузеры | K2: 1) один | L2: однотрансформаторные подстанции (за исключением РТП) | N2: 1) один | O2: распределительные однотрансформаторные подстанции | Q2: 1.) до 6,3 МВА включительно | R2: до 6,3 МВА включительно | T2: 1) однофазные | U2: однофазные
A3: 2) Металлические | B3: металлических опорах | D3: 2) блоки | E3: в блоках | F3: в блоке | H3: 2) линейные разъединители | I3: линейные разъединители | K3: 2) два | L3: двухтрансформаторные и более подстанции (за исключением РТП) | N3: 2) два | O3: распределительные двухтрансформаторные подстанции | Q3: 2.) от 6,3 МВА до 10 МВА включительно | R3: от 6,3 МВА до 10 МВА включительно | T3: 2) трехфазные | U3: трехфазные
A4: 2.1) Металлические, за исключением многогранных | B4: металлических опорах, за исключением многогранных | D4: 3) каналы | E4: в каналах | F4: в канале | H4: 3) выключатели нагрузки | I4: выключатели нагрузки, устанавливаемые вне трансформаторных подстанций и распределительных и переключательных пунктов, | K4: 1.) до 25 кВА включительно | L4: мощностью до 25 кВА включительно | N4: 1.) до 25 кВА включительно | O4: до 25 кВА включительно | Q4: 3.) от 10 МВА до 16 МВА включительно | R4: от 10 МВА до 16 МВА включительно | T4: 1) прямого включения | U4: прямого включения
A5: 2.2) Металлические многогранные | B5: многогранных металлических опорах | D5: 4) туннели и коллекторы | E5: в туннелях и коллекторах | F5: в туннеле или коллекторе | H5: 4) распределительные пункты, за исключением КРН, КРУН | I5: распределительные пункты (РП), за исключением комплектных распределительных устройств наружной установки (КРН, КРУН), | K5: 2.) от 25 до 100 кВА включительно | L5: мощностью от 25 до 100 кВА включительно | N5: 2.) от 25 до 100 кВА включительно | O5: от 25 до 100 кВА включительно | Q5: 4.) от 16 МВА до 25 МВА включительно | R5: от 16 МВА до 25 МВА включительно | T5: 2) полукосвенного включения | U5: полукосвенного включения
A6: 3) Железобетонные | B6: железобетонных опорах | D6: 5) галереи и эстакады | E6: в галереях и эстакадах | F6: в галерее или на эстакаде | H6: 5) КРН, КРУН | I6: комплектные распределительные устройства наружной установки (КРН, КРУН), | K6: 3.) от 100 до 250 кВА включительно | L6: мощностью от 100 до 250 кВА включительно | N6: 3.) от 100 до 250 кВА включительно | O6: от 100 до 250 кВА включительно | Q6: 5.) от 25 МВА до 32 МВА включительно | R6: от 25 МВА до 32 МВА включительно | T6: 3) косвенного включения | U6: косвенного включения
A7: 1) Изолированый | B7: изолированым | D7: 6) метод горизонтального наклонного бурения | E7: , прокладываемые методом горизонтального наклонного бурения | H7: 6) переключательные пункты | I7: переключательные пункты | K7: 4.) от 250 до 400 кВА включительно | L7: мощностью от 250 до 400 кВА включительно | N7: 4.) от 250 до 400 кВА включительно | O7: от 250 до 400 кВА включительно | Q7: 6.) от 32 МВА до 40 МВА включительно | R7: от 32 МВА до 40 МВА включительно
A8: 2) Неизолированный | B8: неизолированным | D8: 7) подводная прокладка | E8: подводной прокладки, | F8: подводной прокладки, | H8: 1) до 100 А | I8: до 100 А включительно | K8: 5.) от 400 до 630 кВА включительно | L8: мощностью от 400 до 630 кВА включительно | N8: 5.) от 400 до 630 кВА включительно | O8: от 400 до 630 кВА включительно | Q8: 7.) от 40 МВА до 63 МВА включительно | R8: от 40 МВА до 63 МВА включительно
A9: 1) Медный | B9: медным | D9: 1) одножильный | E9: одножильные | H9: 2) от 100 до 250 А включительно | I9: от 100 до 250 А включительно | K9: 6.) от 630 кВА до 1000 кВА | L9: мощностью от 630 кВА до 1000 кВА | N9: 6.) от 630 кВА до 1000 кВА | O9: от 630 кВА до 1000 кВА | Q9: 8.) от 63 МВА до 80 МВА включительно | R9: от 63 МВА до 80 МВА включительно
A10: 2) Стальной | B10: стальным | D10: 2) многожильный | E10: многожильные | H10: 3) от 250 до 500 А включительно | I10: от 250 до 500 А включительно | K10: 7.) от 1000 кВА до 1250 кВА | L10: мощностью от 1000 кВА до 1250 кВА | N10: 7.) от 1000 кВА до 1250 кВА | O10: от 1000 кВА до 1250 кВА | Q10: 9.) от 80 МВА до 100 МВА включительно | R10: от 80 МВА до 100 МВА включительно
A11: 3) Сталеалюминиевый | B11: сталеалюминиевым | D11: 1) резиновая или пластмассовая | E11: резиновой или пластмассовой | H11: 4) от 500 до 1000 А включительно | I11: от 500 до 1000 А включительно | K11: 8.) от 1250 кВА до 1600 кВА включительно | L11: мощностью от 1250 кВА до 1600 кВА включительно | N11: 8.) от 1250 кВА до 1600 кВА включительно | O11: от 1250 кВА до 1600 кВА включительно | Q11: 10) свыше 100 МВА | R11: свыше 100 МВА
A12: 4) Алюминиевый | B12: алюминиевым | D12: 2) бумажная | E12: бумажной | H12: 5) свыше 1000 А | I12: свыше 1000 А | K12: 9.) от 1600 кВА до 2000 кВА включительно | L12: мощностью от 1600 кВА до 2000 кВА включительно | N12: 9.) от 1600 кВА до 2000 кВА включительно | O12: от 1600 кВА до 2000 кВА включительно | Q12: 1) 35/6(10) кВ | R12: 35/6(10) кВ
A13: 1) до 50 квадратных мм включительно | B13: до 50 квадратных мм включительно | D13: 1) до 50 квадратных мм включительно | E13: до 50 квадратных мм включительно | H13: 1) до 5 включительно | I13: до 5 включительно | K13: 10) от 2000 кВА до 2500 кВА включительно | L13: мощностью от 2000 кВА до 2500 кВА включительно | N13: 10) от 2000 кВА до 2500 кВА включительно | O13: от 2000 кВА до 2500 кВА включительно | Q13: 2) 35/0,4 кВ | R13: 35/0,4 кВ
A14: 2) от 50 до 100 квадратных мм включительно | B14: от 50 до 100 квадратных мм включительно | D14: 2) от 50 до 100 квадратных мм включительно | E14: от 50 до 100 квадратных мм включительно | H14: 2) от 5 до 10 включительно | I14: от 5 до 10 включительно | K14: 11) от 2500 кВА до 3150 кВА включительно | L14: мощностью от 2500 кВА до 3150 кВА включительно | N14: 11) от 2500 кВА до 3150 кВА включительно | O14: от 2500 кВА до 3150 кВА включительно | Q14: 3) 110/35 кВ | R14: 110/35 кВ
A15: 3) от 100 до 200 квадратных мм включительно | B15: от 100 до 200 квадратных мм включительно | D15: 3) от 100 до 200 квадратных мм включительно | E15: от 100 до 200 квадратных мм включительно | H15: 3) от 10 до 15 включительно | I15: от 10 до 15 включительно | K15: 12) от 3150 кВА до 4000 кВА включительно | L15: мощностью от 3150 кВА до 4000 кВА включительно | N15: 12) свыше 3150 кВА | O15: свыше 3150 кВА | Q15: 4) 110/6(10) кВ | R15: 110/6(10) кВ
A16: 4) от 200 до 500 квадратных мм включительно | B16: от 200 до 500 квадратных мм включительно | D16: 4) от 200 до 250 квадратных мм включительно | E16: от 200 до 250 квадратных мм включительно | H16: 4) свыше 15 | I16: свыше 15 | K16: 13) свыше 4000 кВА | L16: мощностью свыше 4000 кВА | N16: 1) открытого | O16: открытого типа | Q16: 5) 110/35/6(10) кВ | R16: 110/35/6(10) кВ
A17: 5) от 500 до 800 квадратных мм включительно | B17: от 500 до 800 квадратных мм включительно | D17: 5) от 250 до 300 квадратных мм включительно | E17: от 250 до 300 квадратных мм включительно | H17: 1) 0,4 кВ и ниже | I17: 0,4 кВ и ниже | K17: 1) столбового/мачтового | L17: столбового/мачтового типа | N17: 2) закрытого | O17: закрытого типа | Q17: 1) один | R17: однотрансформаторные подстанции
A18: 6) свыше 800 квадратных мм | B18: свыше 800 квадратных мм | D18: 6) от 300 до 400 квадратных мм включительно | E18: от 300 до 400 квадратных мм включительно | H18: 2) 1 - 20 кВ | I18: 1 - 20 кВ | K18: 2) шкафного или киоскового | L18: шкафного или киоскового типа | N18: 1) 6(10)/0,4 кВ | O18: 6(10)/0,4 кВ | Q18: 2) два | R18: двухтрансформаторные подстанции
A19: 1) Одноцепные | B19: одноцепные | D19: 7) от 400 до 500 квадратных мм включительно | E19: от 400 до 500 квадратных мм включительно | H19: 3) 35 кВ | I19: 35 кВ | K19: 3) блочного | L19: блочного типа | N19: 2) 20/0,4 кВ | O19: 20/0,4 кВ | Q19: 1) открытого | R19: открытого типа
A20: 2) Двухцепные | B20: двухцепные | D20: 8) от 500 до 800 квадратных мм включительно | E20: от 500 до 800 квадратных мм включительно | H20: 4) 110 кВ и выше | I20: 110 кВ и выше | K20: 4) встроенного | L20: встроенного типа | Q20: 2) закрытого | R20: закрытого типа
A21: 1) 0,4 кВ и ниже | B21: 0.4 | D21: 9) свыше 800 квадратных мм | E21: свыше 800 квадратных мм | K21: 1) 6/0,4 кВ | L21: 6/0,4 кВ
A22: 2) 1 - 20 кВ | B22: 1 - 20 | D22: 1) один | E22: с одним кабелем | F22: с одной трубой в скважине | K22: 2) 10/0,4 кВ | L22: 10/0,4 кВ
A23: 3) 27,5 - 60 кВ | B23: 27,5 - 60 | D23: 2) два | E23: с двумя кабелями | F23: с двумя трубами в скважине | K23: 3) 20/0,4 кВ | L23: 20/0,4 кВ
A24: 4) 110 кВ и выше | B24: 110 | D24: 3) три | E24: с тремя кабелями | F24: с тремя трубами в скважине | K24: 4) 6/10 (10/6) кВ | L24: 6/10 (10/6) кВ
D25: 4) четыре | E25: с четырьмя кабелями | F25: с четырьмя трубами в скважине | K25: 5) 10/20 (20/10) кВ | L25: 10/20 (20/10) кВ
D26: 5) более четырех | E26: кабелей более четырех | F26: труб более четырех | K26: 6) 6/20 (20/6) кВ | L26: 6/20 (20/6) кВ
D27: 1) 0,4 кВ и ниже | E27: 0,4 кВ и ниже
D28: 2) 1 - 10 кВ | E28: 1 - 10 кВ
D29: 3) 15 - 20 кВ | E29: 15 - 20 кВ
D30: 4) 27,5 - 60 кВ | E30: 27,5 - 60 кВ
D31: 5) 110 кВ и выше | E31: 110 кВ и выше

Sheet Приложение
B1: ="Расчет фактических расходов на выполнение мероприятий по технологическому присоединению, предусмотренных подпунктами 'а' и 'в' пункта 16 Методических указаний, за " & Титульный!D10-4 & "-" & Титульный!D10-2 & " гг."& "(выполняется отдельно по мероприятиям, предусмотренным подпунктами 'а' и 'в' пункта 16 Методических указаний)" -> Расчет фактических расходов на выполнение мероприятий по технологическому присоединению, предусмотренных подпунктами 'а' и 'в' пункта 16 Методических указаний, за 2019-2021 гг.(выполняется отдельно по мероприятиям, предусмотренным подпунктами 'а' и 'в' пункта 16 Методических указаний)
F5: руб.
B6: N п/п | C6: Показатели | D6: ="Данные за предыдущий период регулирования (n-2) "& Титульный!D10-2 & " год" -> Данные за предыдущий период регулирования (n-2) 2021 год | E6: ="Данные за год (n-3), предшествующий предыдущему периоду регулирования " & Титульный!D10-3 & " год" -> Данные за год (n-3), предшествующий предыдущему периоду регулирования 2020 год | F6: ="Данные за год (n-4), предшествующий году (n-3) " & Титульный!D10-4 &" год" -> Данные за год (n-4), предшествующий году (n-3) 2019 год
B7: 1 | C7: 2 | D7: 3 | E7: 4 | F7: 5
B8: 1. | C8: Расходы по выполнению мероприятий по технологическому присоединению, всего | D8: =SUM(D9:D13) -> 366,896.89 | E8: =SUM(E9:E13) -> 367,760.83 | F8: =SUM(F9:F13) -> 70,289.07
B9: 1.1. | C9: Вспомогательные материалы | D9: 0.00 | E9: 0.00 | F9: 0.00
B10: 1.2. | C10: Энергия на хозяйственные нужды | D10: 0.00 | E10: 0.00 | F10: 0.00
B11: 1.3. | C11: Оплата труда ППП | D11: 130,177.33 | E11: =66979.74 -> 66,979.74 | F11: 44,026.42
B12: 1.4. | C12: Отчисления на страховые взносы | D12: 30,330.82 | E12: =13692.45 -> 13,692.45 | F12: 7,753.48
B13: 1.5. | C13: Прочие расходы, всего, в том числе: | D13: =D14+D15+D16 -> 206,388.74 | E13: =E14+E15+E16 -> 287,088.64 | F13: =F14+F15+F16 -> 18,509.17
B14: 1.5.1. | C14: - работы и услуги производственного характера | D14: 22,318.95 | E14: 12,910.00 | F14: 7,707.03
B15: 1.5.2. | C15: - налоги и сборы, уменьшающие налогооблагаемую базу на прибыль организаций, всего | D15: 559.79 | E15: 160.78 | F15: 176.14
B16: 1.5.3. | C16: - работы и услуги непроизводственного характера, в том числе: | D16: =D17+D18+D19+D20+D21 -> 183,510.00 | E16: =E17+E18+E19+E20+E21 -> 274,017.86 | F16: =F17+F18+F19+F20+F21 -> 10,626.00
B17: 1.5.3.1. | C17: услуги связи | D17: 0.00 | E17: 0.00 | F17: 0.00
B18: 1.5.3.2. | C18: расходы на охрану и пожарную безопасность | D18: 0.00 | E18: 0.00 | F18: 0.00
B19: 1.5.3.3. | C19: расходы на информационное обслуживание, иные услуги, связанные с деятельностью по технологическому присоединению | D19: 0.00 | E19: 0.00 | F19: 0.00
B20: 1.5.3.4. | C20: плата за аренду имущества | D20: 0.00 | E20: 0.00 | F20: 0.00
B21: 1.5.3.5. | C21: другие прочие расходы, связанные с производством и реализацией | D21: 183,510.00 | E21: 274,017.86 | F21: 10,626.00
B22: 1.6. | C22: Внереализационные расходы, всего | D22: =D23+D24+D25+D26 -> 0.00 | E22: =E23+E24+E25+E26 -> 0.00 | F22: =F23+F24+F25+F26 -> 0.00
B23: 1.6.1. | C23: - расходы на услуги банков | D23: 0.00 | E23: 0.00 | F23: 0.00
B24: 1.6.2. | C24: - % за пользование кредитом | D24: 0.00 | E24: 0.00 | F24: 0.00
B25: 1.6.3. | C25: - прочие обоснованные расходы | D25: 0.00 | E25: 0.00 | F25: 0.00
B26: 1.6.4. | C26: - денежные выплаты социального характера (по Коллективному договору) | D26: 0.00 | E26: 0.00 | F26: 0.00
